Workbook

Sheet Início
C4: CONTRATO DE TRABALHO | H4: AVISO PRÉVIO PROPORCIONAL | P4: TEMPO DE SERVIÇO
C6: Remuneração : | D6: R$ 4,500.00 | P6: Na data da comunicação do Aviso
H7: 1
C8: Data de Admissão : | D8: 2023-04-02 | P8: =diffDateP(admissão,datacom,,,0,1) -> 9 meses 30 dias
H9: 2
C10: Data do Aviso Prévio : | D10: 2024-01-31 | L10: 1 | P10: No término da projeção do aviso
I12: Aviso : | P12: =IF(OR(mot_resc=2,mot_resc=3),"",diffDateP(admissão,dispensa,,,0,1)) -> 11 meses
P13: =IF(mot_resc=2,"PEDIDO DE DEMISSÃO",IF(mot_resc=3,"TÉRMINO DE CONTRATO A TERMO",IF(aviso1ano<>aviso1anopro,"ATENÇÃO!!! A opção de cálculo considerando a projeção do próprio aviso prévio resulta em mais 3 dias de aviso prévio.","DISPENSA SEM JUSTA CAUSA"))) -> DISPENSA SEM JUSTA CAUSA
H14: Quantidade de dias AP: | K14: =ap_proporcional -> 30
H15: =IF(OR(AND(mot_resc=2,ap_proporcional>30),AND(mot_resc=1,OR(ap=4,ap=5))),"ATENÇÃO!!! O tipo de aviso está em desacordo com o motivo da rescisão.","") -> 
I255: =IF(OR(mot_resc=1,mot_resc=2),"TRABALHADO","TÉRMINO CONTRATO") -> TRABALHADO
H256: 2 | I256: =IF(mot_resc=1,"INDENIZADO",IF(mot_resc=2,"NÃO TRABALHADO","")) -> INDENIZADO
I257: =IF(mot_resc=1,"MISTO",IF(mot_resc=2,"DISPENSA DO CUMPRIMENTO","")) -> MISTO
M259: 1 - dispensa sem justa causa
I260: 1 | J260: motivo da dispensa | M260: 2 - pedido de demissão
M261: 3 - término de contrato a termo

Sheet Cálculos
D3: CÁLCULO RESCISÓRIO - | H3: =IF(mot_resc=1,"DISPENSA SEM JUSTA CAUSA",IF(mot_resc=2,"PEDIDO DE DEMISSÃO","TÉRMINO DE CONTRATO POR PRAZO DETERMINADO")) -> DISPENSA SEM JUSTA CAUSA
D5: EMPRESA........... :
D7: EMPREGADO... :
D9: Remuneração | F9: Admissão | H9: =IF(mot_resc=3,"Término do Contrato","Comunicação do Aviso Prévio") -> Comunicação do Aviso Prévio | J9: Tipo de Aviso | L9: Quantidade Dias de Aviso Prévio | O9: Parâmetros do Cálculo
D10: =remuneração -> R$4,500.00 | F10: =admissão -> 2023-04-02 | H10: =datacom -> 2024-01-31 | J10: =IF(mot_resc=3,"Sem aviso prévio",IF(AND(mot_resc=2,ap<>1),"Não Trabalhado",IF(ap=1,"Aviso Trabalhado",IF(ap=2,"Aviso Indenizado","Aviso Misto")))) -> Aviso Indenizado | L10: =ap_proporcional -> 30 | S10: Saldo de Salários :
O11: Saldo de Salários,
D12: =IF(ap=1,"Término do Contrato","Último Dia Trabalhado") -> Último Dia Trabalhado | F12: Dias Indenizados | H12: =IF(OR(ap=1,F13=0,F13=("-")),"Término do Contrato","Término da Projeção do Aviso") -> Término da Projeção do Aviso | J12: Data Limite Pagamento | L12: Férias Vencidas ? | O12: dividir por:
D13: =IF(ap=1,dispensa,IF(ap=2,datacom,datacom+30)) -> 2024-01-31 | F13: =IF(OR(mot_resc<>1,ap=1),("-"),IF(ap=2,ap_proporcional,ap_proporcional-30)) -> 30 | H13: =datacom+ap_proporcional -> 2024-03-01 | J13: =data_limpagto -> 2024-02-10 | O13: Jornada Mensal - Divisor: | R13: 220 | S13: Quant. Dias S. Sal. | T13: 7
D15: Quantidade de H. Extras | F15: Quant. de H. Extras - 100% | H15: Quant. Ad. Noturno | J15: Atrasos e Faltas | L15: Ad. Insalubridade / Periculosidade | O15: Cálculos Acessórios
D16: 50% | F16: 100% | H16: 20% | L16: Não é devido | O16: 13º salário | R16: Período Aquisitivo | T16: Cálculo
D18: VENCIMENTOS | I18: DESCONTOS | O18: 13º proporcional | R18: =CalcDécTerceiro(admissão,ultimo_diatrab,1) -> 01/01/2024 a 31/01/2024 | T18: =CalcDécTerceiro(admissão,ultimo_diatrab,2) -> 1
D19: Saldo de Salários | G19: =IF(dias_ssal=1,IF(AND(MONTH(admissão)=MONTH(ultimo_diatrab),YEAR(admissão)=YEAR(ultimo_diatrab)),DAY(ultimo_diatrab)-DAY(admissão)+1,DAY(ultimo_diatrab)),IF($T$13>DAY(ultimo_diatrab),DAY(ultimo_diatrab),T13)) -> 31 | H19: =IF(G19>30,remuneração,IF(AND(MONTH(ultimo_diatrab)=2,G19=$G$195),remuneração,remuneração/$F$198*G19)) -> 4,500.00 | I19: INSS s/ Salários | L19: =VLOOKUP(ultimo_diatrab,Tabela_INSS,(IF(F229<=LOOKUP(ultimo_diatrab,Inss_época,famin),3,IF(F229<=LOOKUP(ultimo_diatrab,Inss_época,famed),5,IF(F229<=LOOKUP(ultimo_diatrab,Inss_época,famaior),7,9)))),TRUE) -> 14.00% | M19: =IF(LOOKUP(ultimo_diatrab,Inss_época,Teto_Contribuição)<F229*L19,LOOKUP(ultimo_diatrab,Inss_época,Teto_Contribuição),F229*L19)-IF(OR(ultimo_diatrab<data_ninss,L19<0.09),0,IF(L19=0.09,LOOKUP(ultimo_diatrab,Inss_época,Ded_min),IF(L19=0.12,LOOKUP(ultimo_diatrab,Inss_época,Ded_med),LOOKUP(ultimo_diatrab,Inss_época,Ded_max)))) -> 448.82 | O19: 13º indenizado | R19: =IF(OR(F13=("-"),F13=0),"",CalcDécTerceiro(ultimo_diatrab+1,dispensa,1)) -> 01/02/2024 a 01/03/2024 | T19: =IF(ap<>1,IF(YEAR(dispensa)>YEAR(ultimo_diatrab),CalcDécTerceiro(admissão,ultimo_diaano,2)+CalcDécTerceiro(admissão,dispensa,2)-CalcDécTerceiro(admissão,ultimo_diatrab,2),CalcDécTerceiro(admissão,dispensa,2)-CalcDécTerceiro(admissão,ultimo_diatrab,2)),"") -> 1
D20: Aviso Prévio | G20: =IF(OR(mot_resc<>1,ap=1),"",$F$13) -> 30 | H20: =IF(G20="",0,remuneração/30*G20) -> 4,500.00 | I20: INSS s/ 13º Salário | L20: =VLOOKUP(ultimo_diatrab,Tabela_INSS,(IF(H21+H22<=LOOKUP(ultimo_diatrab,Inss_época,famin),3,IF(H21+H22<=LOOKUP(ultimo_diatrab,Inss_época,famed),5,IF(H21+H22<=LOOKUP(ultimo_diatrab,Inss_época,famaior),7,9)))),TRUE) -> 7.50% | M20: =IF(LOOKUP(ultimo_diatrab,Inss_época,Teto_Contribuição)<(H21+H22)*L20,LOOKUP(ultimo_diatrab,Inss_época,Teto_Contribuição),(H21+H22)*L20)-IF(OR(ultimo_diatrab<data_ninss,L20<0.09),0,IF(L20=0.09,LOOKUP(ultimo_diatrab,Inss_época,Ded_min),IF(L20=0.12,LOOKUP(ultimo_diatrab,Inss_época,Ded_med),LOOKUP(ultimo_diatrab,Inss_época,Ded_max)))) -> 56.25 | O20: Férias
D21: 13º Proporcional | G21: =CalcDécTerceiro(admissão,ultimo_diatrab,2) -> 1 | H21: =remuneração/12*G21 -> 375.00 | I21: I.R.R.F s/ Salários | L21: =VLOOKUP(ultimo_diatrab,Tabela_IRRF,(IF(K183<=LOOKUP(ultimo_diatrab,IRRF_época,Fprimeirairrf),2,IF(K183<=LOOKUP(ultimo_diatrab,IRRF_época,Fsegundairrf),5,IF(K183<=LOOKUP(ultimo_diatrab,IRRF_época,Fterceirairrf),8,IF(K183<=LOOKUP(ultimo_diatrab,IRRF_época,Fquartairrf),11,14))))),TRUE) -> 22.50% | M21: =K183*L21-K185 -> 217.13 | O21: Total: | P21: =INT(_FER/12)&" - "&TEXT(_FER-INT(_FER/12)*12,"00")&"/12" -> 0 - 11/12 | R21: Período Aquisitivo | T21: Cálculo
D22: 13º Indenizado | G22: =IF(mot_resc<>1,"",IF(ap<>1,IF(YEAR(dispensa)>YEAR(ultimo_diatrab),CalcDécTerceiro(admissão,ultimo_diaano,2)+CalcDécTerceiro(admissão,dispensa,2)-CalcDécTerceiro(admissão,ultimo_diatrab,2),CalcDécTerceiro(admissão,dispensa,2)-CalcDécTerceiro(admissão,ultimo_diatrab,2)),"")) -> 1 | H22: =IF(G22="",0,remuneração/12*G22) -> 375.00 | I22: I.R.R.F s/ 13º Salário | L22: =VLOOKUP(ultimo_diatrab,Tabela_IRRF,(IF((H21+H22)<=LOOKUP(ultimo_diatrab,IRRF_época,Fprimeirairrf),2,IF((H21+H22)<=LOOKUP(ultimo_diatrab,IRRF_época,Fsegundairrf),5,IF((H21+H22)<=LOOKUP(ultimo_diatrab,IRRF_época,Fterceirairrf),8,IF((H21+H22)<=LOOKUP(ultimo_diatrab,IRRF_época,Fquartairrf),11,14))))),TRUE) -> 0.00% | M22: =K188*L22-K190 -> 0 | O22: Férias proporcionais | R22: =IF(T22=0,("-----"),CalcFérias(admissão,ultimo_diatrab,3)) -> 02/04/2023 a 31/01/2024 | T22: =IF(ap=1,Férias_prop(admissão,ultimo_diatrab),R192) -> 10
D23: Férias Proporcionais | G23: =T22 -> 10 | H23: =remuneração/12*G23 -> 3,750.00 | I23: Faltas / Atrasos | L23: =IF(J16="","",J16*24) ->  | M23: =IF(L23="",0,(bc_he/divisor)*L23) -> 0 | O23: Férias Indenizadas | R23: =IF(OR(ap=1,F13=0,F13=("-")),("-----"),CalcFérias(ultimo_diatrab+1,dispensa,3)) -> 01/02/2024 a 01/03/2024 | T23: =IF(OR(ap=1,F13=0,F13=("-")),0,R193) -> 1
D24: Férias Indenizadas | G24: =T23 -> 1 | H24: =remuneração/12*G24 -> 375.00 | M24: 0 | O24: Férias Vencidas | R24: =CalcFérias(admissão,ultimo_diatrab,2) ->  | T24: =IF(VALUE(LEFT(P21,1))>0,12,0) -> 0
D25: Férias Vencidas | G25: =IF(AND($E$191,$T$24=12),12,0) -> 0 | H25: =remuneração/12*G25 -> 0 | I25: Adiantamento do 13º salário | M25: 0
D26: Terço de Férias | G26: 1/3 | H26: =SUM(H23:H25)/3 -> 1,375.00 | I26: Adiantamentos | M26: 0 | O26: TABELA DO INSS - 2024
D27: Horas Extras - | F27: =IF(E16="",0,adicional_he) -> 0% | G27: =IF(E16="","",E16*24) ->  | H27: =IF(G27="",0,(bc_he/divisor)*(G27*adicional_he+G27)) -> 0 | M27: =IF(L27="",0,(bc_he/divisor)*L27) -> 0 | O27: SALÁRIO DE CONTRIBUIÇÃO
D28: Horas Extras - | F28: =IF(G16="",0,adicional_domfer) -> 0% | G28: =IF(G16="","",G16*24) ->  | H28: =IF(G28="",0,(bc_he/divisor)*(G28*adicional_domfer+G28)) -> 0 | I28: Vale Transporte | M28: 0 | O28: 0 | Q28: R$ 1,412.00 | S28: 7.50% | T28: 0
D29: Adicional Noturno - | F29: =IF(I16="",0,adicional_not) -> 0% | G29: =IF(I16="","",I16*24) ->  | H29: =IF(G29="",0,(bc_he/divisor)*(G29*adicional_not)) -> 0 | M29: 0 | O29: R$ 1,412.01 | Q29: R$ 2,666.68 | S29: 9.00% | T29: R$ 21.18
D30: DSR s/Horas Extras | G30: =J220*24 -> 0 | H30: =G30*(bc_he/divisor) -> 0 | M30: 0 | O30: R$ 2,666.69 | Q30: R$ 4,000.03 | S30: 12.00% | T30: R$ 101.18
D31: DSR s/Ad. Noturno | G31: =G226*24 -> 0 | H31: =G31*(bc_he/divisor)*adicional_not -> 0 | M31: 0 | O31: R$ 4,000.04 | Q31: R$ 7,786.02 | S31: 14.00% | T31: R$ 181.18
D32: =IF(L16="Não é devido","",IF(L16="30% - Periculosidade","Ad. de Periculosidade","Ad. de Insalubridade")) ->  | G32: =IF(L16="Não é devido","",LEFT(L16,3)) ->  | H32: =IF(D32="",0,IF(G32="30%",(D10*G32)/$F$198*$G$19,(T34*G32)/$F$198*$G$19)) -> 0 | M32: 0 | O32: R$ 909.85 | T32: 2020-03-01
H33: 0 | M33: 0
H34: 0 | M34: 0 | O34: Salário mínimo vigente no mês da rescisão contratual: | T34: =VLOOKUP(YEAR(dispensa),S37:T49,2,0) -> R$ 1,412.00
H35: 0 | M35: 0
E36: TOTAL DE VENCIMENTOS: | H36: =SUM(H19:H35) -> 15,250.00 | J36: TOTAL DE DESCONTOS: | M36: =SUM(M19:M35) -> 722.20 | O36: Dependentes para IR: | Q36: 1 | S36: Tabela Salário Mínimo
E37: VALOR LÍQUIDO DA RESCISÃO: | H37: =H36-M36 -> 14,527.80 | S37: 2012 | T37: R$ 622.00
O38: Desconto Simplificado IR | Q38: NÃO | S38: 2013 | T38: R$ 678.00
D39: =IF(ap=1,CONCATENATE("Aviso trabalhado de"&" "&$L$10&" "&"dias,"&" "&"sendo que o último dia trabalhado foi o dia"&" "&TEXT(ultimo_diatrab,"dd/mm/aaaa")&"."),CONCATENATE("De acordo com a IN nº 15/2010 da SRT/MTE, e com a OJ nº 82, do TST, na página da CTPS do empregado, onde se encontra anotado o contrato de trabalho, o empregador deverá fazer constar como data da efetiva saída a data do dia"&" "&TEXT(dispensa,"dd/mm/aaaa")&" "&"e, em uma das páginas destinadas às anotações gerais, deverá constar a observação de que o último dia efetivamente trabalhado pelo empregado foi o dia"&" "&TEXT(ultimo_diatrab,"dd/mm/aaaa")&".")) -> De acordo com a IN nº 15/2010 da SRT/MTE, e com a OJ nº 82, do TST, na página da CTPS do empregado, onde se encontra anotado o contrato de trabalho, o empregador deverá fazer constar como data da efetiva saída a data do dia 01/03/2024 e, em uma das páginas destinadas às anotações gerais, deverá constar a observação de que o último dia efetivamente trabalhado pelo empregado foi o dia 31/01/2024. | S39: 2014 | T39: R$ 724.00
S40: 2015 | T40: R$ 788.00
S41: 2016 | T41: R$ 880.00
S42: 2017 | T42: R$ 937.00
S43: 2018 | T43: R$ 954.00
S44: 2019 | T44: R$ 998.00
S45: 2020 | T45: R$ 1,045.00
D46: Indenização da data base - artigo 9ª das Leis nº 6.708/1979 e 7.238/1984: | S46: 2021 | T46: R$ 1,100.00
S47: 2022 | T47: R$ 1,212.00
S48: 2023 | T48: R$ 1,320.00
F49: Data Base | G49: Térm. AP | S49: 2024 | T49: R$ 1,412.00
F51: 2022-04-01 | G51: =dispensa -> 2024-03-01 | H51: =IF($F$51="","",IF(AND(dispensa<$F$51,dispensa>=$F$51-30),"É devida","Não é devida")) -> Não é devida | I51: =IF(H51="É devida",remuneração,0) -> 0
D56: Multa do artigo 477, da CLT :
F60: 2022-02-18 | G60: =IF(F60="","",IF(F60>data_limpagto,"É devida","Não é devida")) -> Não é devida | H60: =IF(F60>data_limpagto,remuneração,0) -> 0
D66: De acordo com a Lei nº 13.467, que alterou a redação do artigo 477, da CLT, o empregador tem até 10 (dez) dias para efetuar o pagamento: | I66: =CONCATENATE("ATENÇÃO!!! O PRAZO LIMITE PARA PAGTO DAS VERBAS RESCISÓRIAS É ATÉ:"&" "&(IF($C$171=1,$G$169,IF($C$171=2,$G$170,IF($C$171=3,$G$171,$G$172))))) -> ATENÇÃO!!! O PRAZO LIMITE PARA PAGTO DAS VERBAS RESCISÓRIAS É ATÉ: sábado, 10/fevereiro/2024
C72: DEMONSTRATIVO DO VALOR DO FGTS A SER DEPOSITADO NO MÊS DA RESCISÃO
C73: Saldo para Fins Rescisórios: | F73: 13,000.00
F74: Mês Anterior a Rescisão | G74: MÊS Rescisão | H74: Aviso Prévio Indenizado | I74: Multa Rescisória
C76: Remuneração / Saldo | F76: 0 | G76: =H19+H21+H22+H27+H28+H29+H30+H31+H32 -> 5,250.00 | H76: =H20 -> 4,500.00 | I76: =IF(mot_resc=1,F73+SUM(F76:H76)*8%,0) -> 13,780.00
C77: Depósito | F77: =IF(F76>0,F76*8%,0) -> 0 | G77: =IF(G76>0,G76*8%,0) -> 420.00 | H77: =IF(H76>0,H76*8%,0) -> 360.00 | I77: =I76*40% -> 5,512.00
C78: Valor devido para o trabalhador: | F78: =SUM(F77:I77) -> R$ 6,292.00
J83: =F13 -> 30
C162: 1 | E162: 50
C164: =IF(AND(mot_resc=2,ap=1),30,IF(OR(AND(mot_resc=2,ap<>1),mot_resc=3),0,IF(_aviso=1,aviso1anopro,aviso1ano))) -> 30
C166: =Avisoprévio2(admissão,datacom) -> 30
C167: =Avisoprévio2P(admissão,datacom) -> 30
E169: Antecipa o pagamento | G169: =TEXT(WORKDAY(ultimo_diatrab+10+1,-1,Fer),"dddd, dd/mmmm/aaaa") -> sexta-feira, 09/fevereiro/2024 | I169: =WORKDAY(ultimo_diatrab+10+1,-1,Fer) -> 2024-02-09
E170: Pagto. Primeiro dia útil | G170: =TEXT(WORKDAY(ultimo_diatrab+10-1,1,Fer),"dddd, dd/mmmm/aaaa") -> segunda-feira, 12/fevereiro/2024 | I170: =WORKDAY(ultimo_diatrab+10-1,1,Fer) -> 2024-02-12
C171: 4 | E171: Sábado dia útil antecipa | G171: =TEXT(WORKDAY.INTL(ultimo_diatrab+10+1,-1,11,Fer),"dddd, dd/mmmm/aaaa") -> sábado, 10/fevereiro/2024 | I171: =WORKDAY.INTL(ultimo_diatrab+10+1,-1,11,Fer) -> 2024-02-10
E172: Sábado dia útil prorroga | G172: =TEXT(WORKDAY.INTL(ultimo_diatrab+10-1,1,11,Fer),"dddd, dd/mmmm/aaaa") -> sábado, 10/fevereiro/2024 | I172: =WORKDAY.INTL(ultimo_diatrab+10-1,1,11,Fer) -> 2024-02-10
N173: 2250
E174: =IF($C$171=1,$I$169,IF($C$171=2,$I$170,IF($C$171=3,$I$171,$I$172))) -> 2024-02-10 | F174: data limite pagamento | N174: =N173/9 -> 250
N175: =N174*12 -> 3000 | O175: =N175/12 -> 250
D176: =WEEKDAY(datacom+10) -> 7
D177: =WEEKDAY(datacom+30) -> 6
D178: =WEEKDAY(datacom+31) -> 7 | E178: =TEXT(IF(OR(WEEKDAY(dispensa+1)=1,COUNTIF(Fer,dispensa+1)=1),IF(OR(WEEKDAY(dispensa+2)=1,COUNTIF(Fer,dispensa+2)=1),dispensa+3,dispensa+2),dispensa+1),"dddd, dd/mmmm/aaaa") -> sábado, 02/março/2024
D179: =WEEKDAY(datacom+32) -> 1 | E179: =IF(ap=3,TEXT(IF(OR(WEEKDAY(datacom+31)=1,COUNTIF(Fer,datacom+31)=1),IF(OR(WEEKDAY(datacom+32)=1,COUNTIF(Fer,datacom+32)=1),datacom+33,datacom+32),datacom+31),"dddd, dd/mmmm/aaaa")) -> FALSE
D180: =WEEKDAY(datacom+33) -> 2
C182: 50% | E182: =IF(E164=2,IF(OR(WEEKDAY(10)=1,COUNTIF(Fer,ultimo_diatrab+10)=1),IF(OR(WEEKDAY(ultimo_diatrab+11)=1,COUNTIF(Fer,ultimo_diatrab+11)=1),ultimo_diatrab+12,ultimo_diatrab+11),ultimo_diatrab+10),IF(OR(WEEKDAY(ultimo_diatrab+10)=1,COUNTIF(Fer,ultimo_diatrab+10)=1),IF(OR(WEEKDAY(ultimo_diatrab+9)=1,COUNTIF(Fer,ultimo_diatrab+9)=1),ultimo_diatrab+8,ultimo_diatrab+9),ultimo_diatrab+10)) -> 2024-02-10 | F182: =E182 -> 2024-02-10 | I182: Base Cálc IRRF | J182: INSS devido | K182: BC IRRF | L182: SIM | O182: =N185-1 -> 2023-04-01
C183: 60% | I183: =F229 -> 4,500.00 | J183: =M19 -> 448.82 | K183: =IF($Q$38="SIM",(I183-K186),(I183-J183-J184)) -> 3,861.59 | L183: NÃO
C184: 70% | E184: =DATE(YEAR(ultimo_diatrab),12,31) -> 2024-12-31 | I184: Dependentes | J184: =VLOOKUP(ultimo_diatrab,Tabela_IRRF,16)*depen_qtd -> 189.59
C185: 75% | I185: Parcela deduzir | K185: =VLOOKUP(ultimo_diatrab,Tabela_IRRF,(IF(K183<=LOOKUP(ultimo_diatrab,IRRF_época,Fprimeirairrf),3,IF(K183<=LOOKUP(ultimo_diatrab,IRRF_época,Fsegundairrf),6,IF(K183<=LOOKUP(ultimo_diatrab,IRRF_época,Fterceirairrf),9,IF(K183<=LOOKUP(ultimo_diatrab,IRRF_época,Fquartairrf),12,15))))),TRUE) -> 651.73 | L185: BC IRRF Dsimpl. | N185: =admissão -> 2023-04-02
C186: 80% | E186: =IF(ap=1,DATE(YEAR(ultimo_diatrab)+2,MONTH(ultimo_diatrab),DAY(ultimo_diatrab)+1),DATE(YEAR(dispensa)+2,MONTH(dispensa),DAY(dispensa)+1)) -> 2026-03-02 | F186: prescrição total BIENAL | I186: Desconto Simplificado | K186: 528.00 | L186: =I183-J183-K186 -> 3,523.18 | N186: =ultimo_diatrab -> 2024-01-31 | O186: =IF(N187="","",DATE(YEAR(N186),MONTH(N186),DAY(N185)-1)) -> 2024-01-01 | P186: =IF(N187="","",IF(O186<N187,O186,DATE(YEAR(N186),MONTH(N186-1),DAY(N186-1)))) -> 2024-01-01
C187: 85% | I187: Base de Cálculo IRRF 13º Salário | N187: =dispensa -> 2024-03-01 | P187: =P186+1 -> 2024-01-02
C188: 90% | E188: SIM | F188: 1 | I188: =H21+H22 -> 750.00 | J188: =M20 -> 56.25 | K188: =IF($Q$38="SIM",(I188-K186),(I188-J188-J184)) -> 504.16 | O188: =IF(N187="","",IF(DAY(N185)-1>DAY(N186),DATE(YEAR(N186),MONTH(N186)-1,DAY(N185)-1),DATE(YEAR(N186),MONTH(N186),DAY(N185)-1))) -> 2024-01-01 | Q188: =IF(N187="","",IF(DAY(N185)-1>DAY(N186),DATE(YEAR(N186),MONTH(N186)-1,DAY(N185)-1),DATE(YEAR(N186),MONTH(N186),DAY(N1851)-1))) -> 45290
E189: NÃO | G189: 1 | O189: =O188+1 -> 2024-01-02
C190: 20% | I190: Parcela deduzir | K190: =VLOOKUP(ultimo_diatrab,Tabela_IRRF,(IF(K188<=LOOKUP(ultimo_diatrab,IRRF_época,Fprimeirairrf),3,IF(K188<=LOOKUP(ultimo_diatrab,IRRF_época,Fsegundairrf),6,IF(K188<=LOOKUP(ultimo_diatrab,IRRF_época,Fterceirairrf),9,IF(K188<=LOOKUP(ultimo_diatrab,IRRF_época,Fquartairrf),12,15))))),TRUE) -> 0
C191: 25% | E191: TRUE | L191: 1
C192: 30% | I192: =IF(ferias_propterm>dispensa,dispensa,ferias_propterm) -> 2024-01-01 | J192: férias propind | L192: 2 | R192: =R195+R196 -> 10 | S192: férias proporcionais
C193: 35% | E193: 2 | I193: =DATE(YEAR(ultimo_diatrab),MONTH(ultimo_diatrab),DAY(admissão)-1) -> 2024-01-01 | J193: férias propterm | L193: 3 | R193: =R198 -> 1 | S193: férias indenizadas
C194: 40% | L194: 4
C195: 45% | E195: Ultimo dia trab | F195: =EOMONTH(ultimo_diatrab,0) -> 2024-01-31 | G195: =DAY(F195) -> 31 | I195: último dia trabalhado | L195: 5 | N195: =CalcFérias(admissão,O188,3) -> 02/04/2023 a 01/01/2024 | R195: =Férias_prop(admissão,O188) -> 9 | S195: férias proporcionais - ultimo dia trab
C196: 50% | E196: Mês dispensa | F196: =MONTH(ultimo_diatrab) -> 1 | I196: retorno afastamento | L196: 6 | N196: =CalcFérias(O189,ultimo_diatrab,3) -> 02/01/2024 a 31/01/2024 | R196: =Férias_prop(O189,ultimo_diatrab) -> 1
I197: 1 | L197: 7 | N197: =CalcFérias(O189,dispensa,3) -> 02/01/2024 a 01/03/2024 | R197: =Férias_prop(O189,dispensa) -> 2 | S197: férias indenizadas - período específico
E198: Divisor salário | F198: =IF(E193=1,30,IF(G195=28,28,IF(G195=29,29,IF(G195=31,31,30)))) -> 31 | L198: 8 | R198: =R197-R196 -> 1 | S198: ´férias indenizadas
L199: 9 | N199: =CalcFérias(admissão,dispensa,3) -> 02/04/2023 a 01/03/2024 | R199: =Férias_prop(admissão,dispensa) -> 11 | S199: total de férias proporcionais
D200: Não é devido | F200: base de cálculo HE e AD | L200: 10
D201: 10% - Insalubre | F201: =IF(G32="",0,IF(G32="30%",remuneração*0.3,sal_mínimo*G32)) -> 0 | G201: =F201+remuneração -> R$ 4,500.00 | L201: 11
D202: 20% - Insalubre | L202: 12
D203: 30% - Periculosidade | F203: =D10 -> R$4,500.00 | G203: =F203*30% -> R$ 1,350.00 | L203: 13
D204: 40% - Insalubre | L204: 14
L205: 15
C206: 90 | E206: 2010 | L206: 16
C207: 100 | E207: 2011 | I207: =remuneração*0.3 -> 1350 | L207: 17
C208: 120 | E208: 2012 | L208: 18
C209: 150 | E209: 2013 | L209: 19
C210: 180 | E210: 2014 | L210: 20
C211: 200 | E211: 2015 | L211: 21
C212: 210 | E212: 2016 | L212: 22
C213: 220 | E213: 2017 | L213: 23
E214: 2018 | L214: 24
F215: Dias Úteis | G215: Dias no Mês | H215: Repousos | I215: Domingos | L215: 25 | N215: =G218*24 -> 0.00 | O215: =N215*1.5 -> 0.00
D216: =DATE(YEAR(ultimo_diatrab),MONTH(ultimo_diatrab),1) -> 2024-01-01 | E216: =ultimo_diatrab -> 2024-01-31 | F216: =IF(D216="","",SUMPRODUCT((WEEKDAY(ROW(INDIRECT(D216&":"&E216)),2)<7)*(COUNTIF(Fer,ROW(INDIRECT(D216&":"&E216)))=0))) -> 26 | G216: =E216-D216+1 -> 31 | H216: =G216-F216 -> 5 | I216: =IF(D216="","",SUMPRODUCT((WEEKDAY(ROW(INDIRECT($D216&":"&$E216)))=1)*1)) -> 4 | L216: 26 | N216: =G219*24 -> 0.00 | O216: =N216*2 -> 0.00
L217: 27 | O217: =O215+O216 -> 0.00
F218: =$E$16 -> 0 | G218: =F218/dias_úteis*repousos -> 0 | H218: =F218+G218 -> 0 | I218: =G218*adicional_he+G218 -> 0 | J218: =I218 -> 0 | L218: 28
F219: =$G$16 -> 0 | G219: =F219/dias_úteis*repousos -> 0 | H219: =F219+G219 -> 0 | I219: =G219*2 -> 0 | J219: =I219 -> 0 | L219: 29
J220: =J218+J219 -> 0 | K220: =J220*24*(bc_he/divisor) -> 0.00 | L220: 30
L221: 31
F222: =G218*24*(bc_he/divisor)*1.5 -> 0.00 | G222: 5 | H222: =G222*1.5 -> 7.5
F223: =G219*24*(bc_he/divisor)*2 -> 0.00 | G223: 2.5 | H223: =G223*2 -> 5
F224: =F222+F223 -> 0.00 | H224: =H222+H223 -> 12.5 | I224: =H224*(bc_he/divisor) -> 255.68 | M224: =H27 -> 0 | N224: =H32 -> 0 | P224: =N224+N225+N226+N227 -> 0
K225: =H19 -> 4,500.00 | M225: =H28 -> 0 | N225: =H33 -> 0 | P225: =P224-N228 -> 0
F226: =$I$16 -> 0 | G226: =$F$226/dias_úteis*repousos -> 0 | M226: =H29 -> 0 | N226: =H34 -> 0
M227: =H30 -> 0 | N227: =H35 -> 0
F228: Remuneração base de cálculo verbas salariais - faltas/atrasos | M228: =H31 -> 0 | N228: =M23 -> 0
F229: =H19+SUM(H27:H35)-M23 -> 4,500.00

Sheet Feriados
B1: TABELA AUTOMÁTICA DE TODOS OS FERIADOS NACIONAIS - RELIGIOSOS E LOCAIS | K1: CALENDÁRIO
B2: FERIADOS | C2: =ano-5 -> 2019 | D2: =ano-4 -> 2020 | E2: =ano-3 -> 2021 | F2: =ano-2 -> 2022 | G2: =ano-1 -> 2023 | H2: =YEAR(dispensa) -> 2024 | I2: =ano+1 -> 2025
B3: Confraternização Universal | C3: =DATE(C2,1,1) -> 2019-01-01 | D3: =DATE(D2,1,1) -> 2020-01-01 | E3: 2021-01-01 | F3: 2022-01-01 | G3: 2023-01-01 | H3: 2024-01-01 | I3: 2025-01-01 | K3: 2024 | M3: =INDEX(Meses,MATCH(Q3,NMês,0)) -> Janeiro | Q3: 1
B4: Tiradentes | C4: =DATE(C2,4,21) -> 2019-04-21 | D4: 2020-04-21 | E4: 2021-04-21 | F4: 2022-04-21 | G4: 2023-04-21 | H4: 2024-04-21 | I4: 2025-04-21
B5: Dia do Trabalho | C5: =DATE(C2,5,1) -> 2019-05-01 | D5: 2020-05-01 | E5: 2021-05-01 | F5: 2022-05-01 | G5: 2023-05-01 | H5: 2024-05-01 | I5: 2025-05-01 | K5: Seg | L5: Ter | M5: Qua | N5: Qui | O5: Sex | P5: Sab | Q5: Dom
B6: Independência do Brasil | C6: =DATE(C2,9,7) -> 2019-09-07 | D6: 2020-09-07 | E6: 2021-09-07 | F6: 2022-09-07 | G6: 2023-09-07 | H6: 2024-09-07 | I6: 2025-09-07 | K6: =PDia-WEEKDAY(PDia,3) -> 2024-01-01 | L6: =K6+1 -> 2024-01-02 | M6: 2024-01-03 | N6: 2024-01-04 | O6: 2024-01-05 | P6: 2024-01-06 | Q6: 2024-01-07 | S6: Dias úteis do mês escolhido: | V6: Seg a Sab | W6: Sem Fer.
B7: N. Sra. Aparecida (Lei 6.802/1980) | C7: =DATE(C2,10,12) -> 2019-10-12 | D7: 2020-10-12 | E7: 2021-10-12 | F7: 2022-10-12 | G7: 2023-10-12 | H7: 2024-10-12 | I7: 2025-10-12 | K7: =Q6+1 -> 2024-01-08 | L7: 2024-01-09 | M7: 2024-01-10 | N7: 2024-01-11 | O7: 2024-01-12 | P7: 2024-01-13 | Q7: 2024-01-14 | S7: =PDia -> 2024-01-01 | T7: a | U7: =DATE(YEAR(S7),MONTH(S7)+1,0) -> 2024-01-31 | V7: =SUMPRODUCT((WEEKDAY(ROW(INDIRECT(S7&":"&U7)),2)<7)*1) -> 27 | W7: =SUMPRODUCT((WEEKDAY(ROW(INDIRECT(S7&":"&U7)),2)<7)*(COUNTIF(Fer,ROW(INDIRECT(S7&":"&U7)))=0)) -> 26
B8: Dia de Finados | C8: =DATE(C2,11,2) -> 2019-11-02 | D8: 2020-11-02 | E8: 2021-11-02 | F8: 2022-11-02 | G8: 2023-11-02 | H8: 2024-11-02 | I8: 2025-11-02 | K8: =Q7+1 -> 2024-01-15 | L8: 2024-01-16 | M8: 2024-01-17 | N8: 2024-01-18 | O8: 2024-01-19 | P8: 2024-01-20 | Q8: 2024-01-21
B9: Proclamação da República | C9: =DATE(C2,11,15) -> 2019-11-15 | D9: 2020-11-15 | E9: 2021-11-15 | F9: 2022-11-15 | G9: 2023-11-15 | H9: 2024-11-15 | I9: 2025-11-15 | K9: =Q8+1 -> 2024-01-22 | L9: =K9+1 -> 2024-01-23 | M9: =L9+1 -> 2024-01-24 | N9: 2024-01-25 | O9: 2024-01-26 | P9: 2024-01-27 | Q9: 2024-01-28
B10: Dia da Consciência Negra | C10: =DATE(C2,11,20) -> 2019-11-20 | D10: 2020-11-20 | E10: 2021-11-20 | F10: 2022-11-20 | G10: 2023-11-20 | H10: 2024-11-20 | I10: 2025-11-20 | K10: =Q9+1 -> 2024-01-29 | L10: =K10+1 -> 2024-01-30 | M10: 2024-01-31 | N10: 2024-02-01 | O10: 2024-02-02 | P10: 2024-02-03 | Q10: 2024-02-04
B11: Natal | C11: =DATE(C2,12,25) -> 2019-12-25 | D11: 2020-12-25 | E11: 2021-12-25 | F11: 2022-12-25 | G11: 2023-12-25 | H11: 2024-12-25 | I11: 2025-12-25 | K11: =Q10+1 -> 2024-02-05 | L11: =K11+1 -> 2024-02-06 | M11: 2024-02-07 | N11: 2024-02-08 | O11: 2024-02-09 | P11: 2024-02-10 | Q11: 2024-02-11
B12: Feriado Municipal 1 | C12: =DATE(C2,mes_1,dia_1) -> 2019-06-12 | D12: 2020-06-12 | E12: 2021-06-12 | F12: 2022-06-12 | G12: 2023-06-12 | H12: 2024-06-12 | I12: 2025-06-12
A13: =fsexta -> 1 | B13: Feriado Municipal 2 | C13: =DATE(C2,mes_2,dia_2) -> 2019-06-24 | D13: 2020-06-24 | E13: 2021-06-24 | F13: 2022-06-24 | G13: 2023-06-24 | H13: 2024-06-24 | I13: 2025-06-24
A14: =fcorpus -> 1 | B14: Sexta-feira santa | C14: =IF($A$13=1,$C$18-2,$BC$115) -> 2019-04-19 | D14: =IF($A$13=1,$D$18-2,$BC$115) -> 2020-04-10 | E14: =IF($A$13=1,$E$18-2,$BC$115) -> 2021-04-02 | F14: =IF($A$13=1,$F$18-2,$BC$115) -> 2022-04-15 | G14: =IF($A$13=1,$G$18-2,$BC$115) -> 2023-04-07 | H14: =IF($A$13=1,$H$18-2,$BC$115) -> 2024-03-29 | I14: =IF($A$13=1,$I$18-2,$BC$115) -> 2025-04-18
A15: =fcarnaval -> 0 | B15: Corpus Christi | C15: =IF($A$14=1,$C$18+60,$BC$115) -> 2019-06-20 | D15: =IF($A$14=1,$D$18+60,$BC$115) -> 2020-06-11 | E15: =IF($A$14=1,$E$18+60,$BC$115) -> 2021-06-03 | F15: =IF($A$14=1,$F$18+60,$BC$115) -> 2022-06-16 | G15: =IF($A$14=1,$G$18+60,$BC$115) -> 2023-06-08 | H15: =IF($A$14=1,$H$18+60,$BC$115) -> 2024-05-30 | I15: =IF($A$14=1,$I$18+60,$BC$115) -> 2025-06-19 | K15: =TODAY() -> 2024-02-04
B16: Terça-Feira de Carnaval | C16: =IF($A$15=1,$C$18-47,$BC$115) -> 1905-01-03 | D16: =IF($A$15=1,$D$18-47,$BC$115) -> 1905-01-03 | E16: =IF($A$15=1,$E$18-47,$BC$115) -> 1905-01-03 | F16: =IF($A$15=1,$F$18-47,$BC$115) -> 1905-01-03 | G16: =IF($A$15=1,$G$18-47,$BC$115) -> 1905-01-03 | H16: =IF($A$15=1,$H$18-47,$BC$115) -> 1905-01-03 | I16: =IF($A$15=1,I18-47,$BC$115) -> 1905-01-03
B18: DOMINGO DE PÁSCOA | C18: =DATE(C2,IF((25-MOD((11*MOD(C2-1900,19)+4-INT((7*MOD(C2-1900,19)+1)/19)),29)-MOD(C2-1900+INT((C2-1900)/4)+31-MOD((11*MOD(C2-1900,19)+4-INT((7*MOD(C2-1900,19)+1)/19)),29),7))>0,4,3),IF((25-MOD((11*MOD(C2-1900,19)+4-INT((7*MOD(C2-1900,19)+1)/19)),29)-MOD(C2-1900+INT((C2-1900)/4)+31-MOD((11*MOD(C2-1900,19)+4-INT((7*MOD(C2-1900,19)+1)/19)),29),7))>0,(25-MOD((11*MOD(C2-1900,19)+4-INT((7*MOD(C2-1900,19)+1)/19)),29)-MOD(C2-1900+INT((C2-1900)/4)+31-MOD((11*MOD(C2-1900,19)+4-INT((7*MOD(C2-1900,19)+1)/19)),29),7)),31+(25-MOD((11*MOD(C2-1900,19)+4-INT((7*MOD(C2-1900,19)+1)/19)),29)-MOD(C2-1900+INT((C2-1900)/4)+31-MOD((11*MOD(C2-1900,19)+4-INT((7*MOD(C2-1900,19)+1)/19)),29),7)))) -> 2019-04-21 | D18: 2020-04-12 | E18: 2021-04-04 | F18: 2022-04-17 | G18: 2023-04-09 | H18: 2024-03-31 | I18: 2025-04-20
B21: Carnaval | C21: =TEXT(C16,"ddd") -> ter | D21: ter | E21: ter | F21: ter | G21: ter | H21: ter | I21: ter
B22: Sexta-feira | C22: =TEXT(C14,"ddd") -> sex | D22: sex | E22: sex | F22: sex | G22: sex | H22: sex | I22: sex
B23: Páscoa | C23: =TEXT(C18,"ddd") -> dom | D23: dom | E23: dom | F23: dom | G23: dom | H23: dom | I23: dom
B24: Corpus Christi | C24: =TEXT(C15,"ddd") -> qui | D24: qui | E24: qui | F24: qui | G24: qui | H24: qui | I24: qui
B27: Instruções para o preenchimento dos feriados municipais e estaduais: | H27: FERIADOS MUNICIPAIS
B28: Insira na tabela ao lado, os feriados fixos do seu município. | H28: FERIADOS | I28: MÊS | J28: DIA
B29: Nas colunas MÊS E DIA, digite o algarismo correspondente, apagando os dados | H29: Local 1 | I29: 6 | J29: 12
B30: do exemplo, que referem-se aos dois feriados municipais de Foz do Iguaçu/PR. | H30: Local 2 | I30: 6 | J30: 24
B31: Para feriados móveis, use a tabela de feriados móveis (por exemplo, terça-feira de carnaval não é | H31: EDITE ACIMA OS FERIADOS MUNICIPAIS FIXOS, ALTERANDO DIA E MÊS
B32: feriado na maior parte dos municípios > basta desmarcar a cx de seleção).
B35: Contato:
B36: gilber.braga@bol.com.br
B39: FERIADOS | C39: Fixo / Móvel | D39: LEGISLAÇÃO CORRESPONDENTE
B40: Confraternização Universal - 01 de janeiro | C40: Data fixa | D40: Lei 666, de 06/04/1949, art. 1º
B41: Dia de Tiradentes - 21 de abril | C41: Data fixa | D41: Lei 1.266, de 08/12/1950,art. 3º; Lei 662, de 06/04/1949, art. 1º
B42: Dia do Trabalho - 01 de maio | C42: Data fixa | D42: Lei 666, de 06/04/1949, art. 1º
B43: Dia da Independência do Brasil - 07 de setembro | C43: Data fixa | D43: Lei 666, de 06/04/1949, art. 1º
B44: Padroeira do Brasil - 12 de outubro | C44: Data fixa | D44: Lei 6.802, de 30.06.1980
B45: Dia de eleições gerais | C45: Data fixa | D45: Lei 1.266, de 08/12/1950,art. 3º; Lei 662, de 06/04/1949, art. 1º
B46: Dia de Finados - 02 de novembro | C46: Data fixa | D46: Lei 666, de 06/04/1949, art. 1º, com a redação dada pela Lei 10.607, de 19/12/2002
B47: Proclamação da República | C47: Data fixa | D47: Lei 666, de 06/04/1949, art. 1º
B48: Dia de Natal - 25 de dezembro | C48: Data fixa | D48: Lei 666, de 06/04/1949, art. 1º
AK50: Pdia | AL50: Udia
AK51: =DATE(anno,MATCH($Q$3,NMês,0),1) -> 2024-01-01 | AL51: =DATE(anno,MATCH($M$3,Meses,0)+1,1)-1 -> 2024-01-31
AK52: Janeiro | AL52: 1
AK53: Fevereiro | AL53: 2
AK54: Março | AL54: 3
AK55: Abril | AL55: 4
AK56: Maio | AL56: 5
AK57: Junho | AL57: 6
AK58: Julho | AL58: 7
AK59: Agosto | AL59: 8
AK60: Setembro | AL60: 9
AK61: Outubro | AL61: 10
AK62: Novembro | AL62: 11
AK63: Dezembro | AL63: 12
C100: TRUE | D100: =IF(C100=TRUE,1,0) -> 1
C101: TRUE | D101: =IF(C101=TRUE,1,0) -> 1
C102: FALSE | D102: =IF(C102=TRUE,1,0) -> 0
C112: TRUE
BC115: 1905-01-03

Sheet Links
B3: LEGISLAÇÃO
B5: Constituição Federal, art. 7º, Inciso XXI - Aviso prévio proporcional
B7: CLT, arts. 487 a 491 - Aviso prévio
B9: Lei 12506, de 2011 - Aviso prévio proporcional
B11: JURISPRUDÊNCIA
B13: Súmula TST 163 - Contrato de experiência
B15: Súmula TST 182 - Indenização compensatória. Cômputo do tempo do aviso prévio
B17: Súmula TST 230 - Horas extras no período do aviso prévio
B19: Súmula TST 276 - Aviso prévio. Renúncia pelo empregado
B21: Súmula TST 305 - FGTS. Incidência sobre aviso prévio
B23: Súmula TST 348 - Aviso prévio. Concessão na fluência da garantia de emprego. Invalidade
B25: Súmula TST 371 - Aviso prévio indenizado. Efeitos. Superveniência de auxílio-doença no curso deste
B27: Súmula TST 380 - Aviso prévio. Início da contagem
B29: Súmula TST 441 - Aviso prévio. Proporcionalidade
B31: Orientação Jurisprudencial SDI1 014 - Aviso prévio cumprido em casa. Prazo para pagamento
B33: Orientação Jurisprudencial SDI1 082 - Aviso prévio. Baixa na CTPS
B35: Orientação Jurisprudencial SDI1 367 - Aviso prévio 60 dias. Elastecimento por norma coletiva. Reflexos nas parcelas trabalhistas

Sheet Aliq_INSS
A1: INSS
A3: Época | B3: Faixa Mínima | C3: Alíquota | D3: Faixa Média | E3: Alíquota | F3: Faixa Maior | G3: Alíquota | H3: Faixa Máxima | I3: Alíquota | J3: Limite de Contribuição | M3: Parcelas a Deduzir
A4: mês/ano | B4: até | C4: % | D4: até | E4: % | F4: até | G4: % | H4: até | I4: % | J4: até | K4: % | L4: TETO | M4: $
A5: 1970-01-01 | B5: 1,560.00 | C5: 8% | D5: 1,560.00 | E5: 8% | F5: 1,560.00 | G5: 8% | H5: 1,560.00 | I5: 8% | J5: 1,560.00 | K5: 8% | L5: 124.80
A6: 1970-02-01 | B6: 1,560.00 | C6: 8% | D6: 1,560.00 | E6: 8% | F6: 1,560.00 | G6: 8% | H6: 1,560.00 | I6: 8% | J6: 1,560.00 | K6: 8% | L6: 124.80
A7: 1970-03-01 | B7: 1,560.00 | C7: 8% | D7: 1,560.00 | E7: 8% | F7: 1,560.00 | G7: 8% | H7: 1,560.00 | I7: 8% | J7: 1,560.00 | K7: 8% | L7: 124.80
A8: 1970-04-01 | B8: 1,560.00 | C8: 8% | D8: 1,560.00 | E8: 8% | F8: 1,560.00 | G8: 8% | H8: 1,560.00 | I8: 8% | J8: 1,560.00 | K8: 8% | L8: 124.80
A9: 1970-05-01 | B9: 1,872.00 | C9: 8% | D9: 1,872.00 | E9: 8% | F9: 1,872.00 | G9: 8% | H9: 1,872.00 | I9: 8% | J9: 1,872.00 | K9: 8% | L9: 149.76
A10: 1970-06-01 | B10: 1,872.00 | C10: 8% | D10: 1,872.00 | E10: 8% | F10: 1,872.00 | G10: 8% | H10: 1,872.00 | I10: 8% | J10: 1,872.00 | K10: 8% | L10: 149.76
A11: 1970-07-01 | B11: 1,872.00 | C11: 8% | D11: 1,872.00 | E11: 8% | F11: 1,872.00 | G11: 8% | H11: 1,872.00 | I11: 8% | J11: 1,872.00 | K11: 8% | L11: 149.76
A12: 1970-08-01 | B12: 1,872.00 | C12: 8% | D12: 1,872.00 | E12: 8% | F12: 1,872.00 | G12: 8% | H12: 1,872.00 | I12: 8% | J12: 1,872.00 | K12: 8% | L12: 149.76
A13: 1970-09-01 | B13: 1,872.00 | C13: 8% | D13: 1,872.00 | E13: 8% | F13: 1,872.00 | G13: 8% | H13: 1,872.00 | I13: 8% | J13: 1,872.00 | K13: 8% | L13: 149.76
A14: 1970-10-01 | B14: 1,872.00 | C14: 8% | D14: 1,872.00 | E14: 8% | F14: 1,872.00 | G14: 8% | H14: 1,872.00 | I14: 8% | J14: 1,872.00 | K14: 8% | L14: 149.76
A15: 1970-11-01 | B15: 1,872.00 | C15: 8% | D15: 1,872.00 | E15: 8% | F15: 1,872.00 | G15: 8% | H15: 1,872.00 | I15: 8% | J15: 1,872.00 | K15: 8% | L15: 149.76
A16: 1970-12-01 | B16: 1,872.00 | C16: 8% | D16: 1,872.00 | E16: 8% | F16: 1,872.00 | G16: 8% | H16: 1,872.00 | I16: 8% | J16: 1,872.00 | K16: 8% | L16: 149.76
A17: 1971-01-01 | B17: 1,872.00 | C17: 8% | D17: 1,872.00 | E17: 8% | F17: 1,872.00 | G17: 8% | H17: 1,872.00 | I17: 8% | J17: 1,872.00 | K17: 8% | L17: 149.76
A18: 1971-02-01 | B18: 1,872.00 | C18: 8% | D18: 1,872.00 | E18: 8% | F18: 1,872.00 | G18: 8% | H18: 1,872.00 | I18: 8% | J18: 1,872.00 | K18: 8% | L18: 149.76
A19: 1971-03-01 | B19: 1,872.00 | C19: 8% | D19: 1,872.00 | E19: 8% | F19: 1,872.00 | G19: 8% | H19: 1,872.00 | I19: 8% | J19: 1,872.00 | K19: 8% | L19: 149.76
A20: 1971-04-01 | B20: 1,872.00 | C20: 8% | D20: 1,872.00 | E20: 8% | F20: 1,872.00 | G20: 8% | H20: 1,872.00 | I20: 8% | J20: 1,872.00 | K20: 8% | L20: 149.76
A21: 1971-05-01 | B21: 2,562.00 | C21: 8% | D21: 2,562.00 | E21: 8% | F21: 2,562.00 | G21: 8% | H21: 2,562.00 | I21: 8% | J21: 2,562.00 | K21: 8% | L21: 204.96
A22: 1971-06-01 | B22: 2,562.00 | C22: 8% | D22: 2,562.00 | E22: 8% | F22: 2,562.00 | G22: 8% | H22: 2,562.00 | I22: 8% | J22: 2,562.00 | K22: 8% | L22: 204.96
A23: 1971-07-01 | B23: 2,562.00 | C23: 8% | D23: 2,562.00 | E23: 8% | F23: 2,562.00 | G23: 8% | H23: 2,562.00 | I23: 8% | J23: 2,562.00 | K23: 8% | L23: 204.96
A24: 1971-08-01 | B24: 2,562.00 | C24: 8% | D24: 2,562.00 | E24: 8% | F24: 2,562.00 | G24: 8% | H24: 2,562.00 | I24: 8% | J24: 2,562.00 | K24: 8% | L24: 204.96
A25: 1971-09-01 | B25: 2,562.00 | C25: 8% | D25: 2,562.00 | E25: 8% | F25: 2,562.00 | G25: 8% | H25: 2,562.00 | I25: 8% | J25: 2,562.00 | K25: 8% | L25: 204.96
A26: 1971-10-01 | B26: 2,562.00 | C26: 8% | D26: 2,562.00 | E26: 8% | F26: 2,562.00 | G26: 8% | H26: 2,562.00 | I26: 8% | J26: 2,562.00 | K26: 8% | L26: 204.96
A27: 1971-11-01 | B27: 2,562.00 | C27: 8% | D27: 2,562.00 | E27: 8% | F27: 2,562.00 | G27: 8% | H27: 2,562.00 | I27: 8% | J27: 2,562.00 | K27: 8% | L27: 204.96
A28: 1971-12-01 | B28: 2,562.00 | C28: 8% | D28: 2,562.00 | E28: 8% | F28: 2,562.00 | G28: 8% | H28: 2,562.00 | I28: 8% | J28: 2,562.00 | K28: 8% | L28: 204.96
A29: 1972-01-01 | B29: 2,562.00 | C29: 8% | D29: 2,562.00 | E29: 8% | F29: 2,562.00 | G29: 8% | H29: 2,562.00 | I29: 8% | J29: 2,562.00 | K29: 8% | L29: 204.96
A30: 1972-02-01 | B30: 2,562.00 | C30: 8% | D30: 2,562.00 | E30: 8% | F30: 2,562.00 | G30: 8% | H30: 2,562.00 | I30: 8% | J30: 2,562.00 | K30: 8% | L30: 204.96
A31: 1972-03-01 | B31: 2,562.00 | C31: 8% | D31: 2,562.00 | E31: 8% | F31: 2,562.00 | G31: 8% | H31: 2,562.00 | I31: 8% | J31: 2,562.00 | K31: 8% | L31: 204.96
A32: 1972-04-01 | B32: 2,562.00 | C32: 8% | D32: 2,562.00 | E32: 8% | F32: 2,562.00 | G32: 8% | H32: 2,562.00 | I32: 8% | J32: 2,562.00 | K32: 8% | L32: 204.96
A33: 1972-05-01 | B33: 2,688.00 | C33: 8% | D33: 2,688.00 | E33: 8% | F33: 2,688.00 | G33: 8% | H33: 2,688.00 | I33: 8% | J33: 2,688.00 | K33: 8% | L33: 215.04
A34: 1972-06-01 | B34: 2,688.00 | C34: 8% | D34: 2,688.00 | E34: 8% | F34: 2,688.00 | G34: 8% | H34: 2,688.00 | I34: 8% | J34: 2,688.00 | K34: 8% | L34: 215.04
A35: 1972-07-01 | B35: 2,688.00 | C35: 8% | D35: 2,688.00 | E35: 8% | F35: 2,688.00 | G35: 8% | H35: 2,688.00 | I35: 8% | J35: 2,688.00 | K35: 8% | L35: 215.04
A36: 1972-08-01 | B36: 2,688.00 | C36: 8% | D36: 2,688.00 | E36: 8% | F36: 2,688.00 | G36: 8% | H36: 2,688.00 | I36: 8% | J36: 2,688.00 | K36: 8% | L36: 215.04
A37: 1972-09-01 | B37: 2,688.00 | C37: 8% | D37: 2,688.00 | E37: 8% | F37: 2,688.00 | G37: 8% | H37: 2,688.00 | I37: 8% | J37: 2,688.00 | K37: 8% | L37: 215.04
A38: 1972-10-01 | B38: 2,688.00 | C38: 8% | D38: 2,688.00 | E38: 8% | F38: 2,688.00 | G38: 8% | H38: 2,688.00 | I38: 8% | J38: 2,688.00 | K38: 8% | L38: 215.04
A39: 1972-11-01 | B39: 2,688.00 | C39: 8% | D39: 2,688.00 | E39: 8% | F39: 2,688.00 | G39: 8% | H39: 2,688.00 | I39: 8% | J39: 2,688.00 | K39: 8% | L39: 215.04
A40: 1972-12-01 | B40: 2,688.00 | C40: 8% | D40: 2,688.00 | E40: 8% | F40: 2,688.00 | G40: 8% | H40: 2,688.00 | I40: 8% | J40: 2,688.00 | K40: 8% | L40: 215.04
A41: 1973-01-01 | B41: 2,688.00 | C41: 8% | D41: 2,688.00 | E41: 8% | F41: 2,688.00 | G41: 8% | H41: 2,688.00 | I41: 8% | J41: 2,688.00 | K41: 8% | L41: 215.04
A42: 1973-02-01 | B42: 2,688.00 | C42: 8% | D42: 2,688.00 | E42: 8% | F42: 2,688.00 | G42: 8% | H42: 2,688.00 | I42: 8% | J42: 2,688.00 | K42: 8% | L42: 215.04
A43: 1973-03-01 | B43: 2,688.00 | C43: 8% | D43: 2,688.00 | E43: 8% | F43: 2,688.00 | G43: 8% | H43: 2,688.00 | I43: 8% | J43: 2,688.00 | K43: 8% | L43: 215.04
A44: 1973-04-01 | B44: 2,688.00 | C44: 8% | D44: 2,688.00 | E44: 8% | F44: 2,688.00 | G44: 8% | H44: 2,688.00 | I44: 8% | J44: 2,688.00 | K44: 8% | L44: 215.04
A45: 1973-05-01 | B45: 3,120.00 | C45: 8% | D45: 3,120.00 | E45: 8% | F45: 3,120.00 | G45: 8% | H45: 3,120.00 | I45: 8% | J45: 3,120.00 | K45: 8% | L45: 249.60
A46: 1973-06-01 | B46: 5,200.00 | C46: 8% | D46: 5,200.00 | E46: 8% | F46: 5,200.00 | G46: 8% | H46: 5,200.00 | I46: 8% | J46: 5,200.00 | K46: 8% | L46: 416.00
A47: 1973-07-01 | B47: 6,240.00 | C47: 8% | D47: 6,240.00 | E47: 8% | F47: 6,240.00 | G47: 8% | H47: 6,240.00 | I47: 8% | J47: 6,240.00 | K47: 8% | L47: 499.20
A48: 1973-08-01 | B48: 6,240.00 | C48: 8% | D48: 6,240.00 | E48: 8% | F48: 6,240.00 | G48: 8% | H48: 6,240.00 | I48: 8% | J48: 6,240.00 | K48: 8% | L48: 499.20
A49: 1973-09-01 | B49: 6,240.00 | C49: 8% | D49: 6,240.00 | E49: 8% | F49: 6,240.00 | G49: 8% | H49: 6,240.00 | I49: 8% | J49: 6,240.00 | K49: 8% | L49: 499.20
A50: 1973-10-01 | B50: 6,240.00 | C50: 8% | D50: 6,240.00 | E50: 8% | F50: 6,240.00 | G50: 8% | H50: 6,240.00 | I50: 8% | J50: 6,240.00 | K50: 8% | L50: 499.20
A51: 1973-11-01 | B51: 6,240.00 | C51: 8% | D51: 6,240.00 | E51: 8% | F51: 6,240.00 | G51: 8% | H51: 6,240.00 | I51: 8% | J51: 6,240.00 | K51: 8% | L51: 499.20
A52: 1973-12-01 | B52: 6,240.00 | C52: 8% | D52: 6,240.00 | E52: 8% | F52: 6,240.00 | G52: 8% | H52: 6,240.00 | I52: 8% | J52: 6,240.00 | K52: 8% | L52: 499.20
A53: 1974-01-01 | B53: 6,240.00 | C53: 8% | D53: 6,240.00 | E53: 8% | F53: 6,240.00 | G53: 8% | H53: 6,240.00 | I53: 8% | J53: 6,240.00 | K53: 8% | L53: 499.20
A54: 1974-02-01 | B54: 6,240.00 | C54: 8% | D54: 6,240.00 | E54: 8% | F54: 6,240.00 | G54: 8% | H54: 6,240.00 | I54: 8% | J54: 6,240.00 | K54: 8% | L54: 499.20
A55: 1974-03-01 | B55: 6,240.00 | C55: 8% | D55: 6,240.00 | E55: 8% | F55: 6,240.00 | G55: 8% | H55: 6,240.00 | I55: 8% | J55: 6,240.00 | K55: 8% | L55: 499.20
A56: 1974-04-01 | B56: 6,240.00 | C56: 8% | D56: 6,240.00 | E56: 8% | F56: 6,240.00 | G56: 8% | H56: 6,240.00 | I56: 8% | J56: 6,240.00 | K56: 8% | L56: 499.20
A57: 1974-05-01 | B57: 7,536.00 | C57: 8% | D57: 7,536.00 | E57: 8% | F57: 7,536.00 | G57: 8% | H57: 7,536.00 | I57: 8% | J57: 7,536.00 | K57: 8% | L57: 602.88
A58: 1974-06-01 | B58: 7,536.00 | C58: 8% | D58: 7,536.00 | E58: 8% | F58: 7,536.00 | G58: 8% | H58: 7,536.00 | I58: 8% | J58: 7,536.00 | K58: 8% | L58: 602.88
A59: 1974-07-01 | B59: 7,536.00 | C59: 8% | D59: 7,536.00 | E59: 8% | F59: 7,536.00 | G59: 8% | H59: 7,536.00 | I59: 8% | J59: 7,536.00 | K59: 8% | L59: 602.88
A60: 1974-08-01 | B60: 7,536.00 | C60: 8% | D60: 7,536.00 | E60: 8% | F60: 7,536.00 | G60: 8% | H60: 7,536.00 | I60: 8% | J60: 7,536.00 | K60: 8% | L60: 602.88
A61: 1974-09-01 | B61: 7,536.00 | C61: 8% | D61: 7,536.00 | E61: 8% | F61: 7,536.00 | G61: 8% | H61: 7,536.00 | I61: 8% | J61: 7,536.00 | K61: 8% | L61: 602.88
A62: 1974-10-01 | B62: 7,536.00 | C62: 8% | D62: 7,536.00 | E62: 8% | F62: 7,536.00 | G62: 8% | H62: 7,536.00 | I62: 8% | J62: 7,536.00 | K62: 8% | L62: 602.88
A63: 1974-11-01 | B63: 7,536.00 | C63: 8% | D63: 7,536.00 | E63: 8% | F63: 7,536.00 | G63: 8% | H63: 7,536.00 | I63: 8% | J63: 7,536.00 | K63: 8% | L63: 602.88
A64: 1974-12-01 | B64: 7,536.00 | C64: 8% | D64: 7,536.00 | E64: 8% | F64: 7,536.00 | G64: 8% | H64: 7,536.00 | I64: 8% | J64: 7,536.00 | K64: 8% | L64: 602.88
A65: 1975-01-01 | B65: 7,536.00 | C65: 8% | D65: 7,536.00 | E65: 8% | F65: 7,536.00 | G65: 8% | H65: 7,536.00 | I65: 8% | J65: 7,536.00 | K65: 8% | L65: 602.88
A66: 1975-02-01 | B66: 7,536.00 | C66: 8% | D66: 7,536.00 | E66: 8% | F66: 7,536.00 | G66: 8% | H66: 7,536.00 | I66: 8% | J66: 7,536.00 | K66: 8% | L66: 602.88
A67: 1975-03-01 | B67: 7,536.00 | C67: 8% | D67: 7,536.00 | E67: 8% | F67: 7,536.00 | G67: 8% | H67: 7,536.00 | I67: 8% | J67: 7,536.00 | K67: 8% | L67: 602.88
A68: 1975-04-01 | B68: 7,536.00 | C68: 8% | D68: 7,536.00 | E68: 8% | F68: 7,536.00 | G68: 8% | H68: 7,536.00 | I68: 8% | J68: 7,536.00 | K68: 8% | L68: 602.88
A69: 1975-05-01 | B69: 10,020.00 | C69: 8% | D69: 10,020.00 | E69: 8% | F69: 10,020.00 | G69: 8% | H69: 10,020.00 | I69: 8% | J69: 10,020.00 | K69: 8% | L69: 801.60
A70: 1975-06-01 | B70: 10,020.00 | C70: 8% | D70: 10,020.00 | E70: 8% | F70: 10,020.00 | G70: 8% | H70: 10,020.00 | I70: 8% | J70: 10,020.00 | K70: 8% | L70: 801.60
A71: 1975-07-01 | B71: 10,020.00 | C71: 8% | D71: 10,020.00 | E71: 8% | F71: 10,020.00 | G71: 8% | H71: 10,020.00 | I71: 8% | J71: 10,020.00 | K71: 8% | L71: 801.60
A72: 1975-08-01 | B72: 10,020.00 | C72: 8% | D72: 10,020.00 | E72: 8% | F72: 10,020.00 | G72: 8% | H72: 10,020.00 | I72: 8% | J72: 10,020.00 | K72: 8% | L72: 801.60
A73: 1975-09-01 | B73: 10,020.00 | C73: 8% | D73: 10,020.00 | E73: 8% | F73: 10,020.00 | G73: 8% | H73: 10,020.00 | I73: 8% | J73: 10,020.00 | K73: 8% | L73: 801.60
A74: 1975-10-01 | B74: 10,020.00 | C74: 8% | D74: 10,020.00 | E74: 8% | F74: 10,020.00 | G74: 8% | H74: 10,020.00 | I74: 8% | J74: 10,020.00 | K74: 8% | L74: 801.60
A75: 1975-11-01 | B75: 10,020.00 | C75: 8% | D75: 10,020.00 | E75: 8% | F75: 10,020.00 | G75: 8% | H75: 10,020.00 | I75: 8% | J75: 10,020.00 | K75: 8% | L75: 801.60
A76: 1975-12-01 | B76: 10,020.00 | C76: 8% | D76: 10,020.00 | E76: 8% | F76: 10,020.00 | G76: 8% | H76: 10,020.00 | I76: 8% | J76: 10,020.00 | K76: 8% | L76: 801.60
A77: 1976-01-01 | B77: 10,020.00 | C77: 8% | D77: 10,020.00 | E77: 8% | F77: 10,020.00 | G77: 8% | H77: 10,020.00 | I77: 8% | J77: 10,020.00 | K77: 8% | L77: 801.60
A78: 1976-02-01 | B78: 10,020.00 | C78: 8% | D78: 10,020.00 | E78: 8% | F78: 10,020.00 | G78: 8% | H78: 10,020.00 | I78: 8% | J78: 10,020.00 | K78: 8% | L78: 801.60
A79: 1976-03-01 | B79: 10,020.00 | C79: 8% | D79: 10,020.00 | E79: 8% | F79: 10,020.00 | G79: 8% | H79: 10,020.00 | I79: 8% | J79: 10,020.00 | K79: 8% | L79: 801.60
A80: 1976-04-01 | B80: 10,020.00 | C80: 8% | D80: 10,020.00 | E80: 8% | F80: 10,020.00 | G80: 8% | H80: 10,020.00 | I80: 8% | J80: 10,020.00 | K80: 8% | L80: 801.60
A81: 1976-05-01 | B81: 12,766.00 | C81: 8% | D81: 12,766.00 | E81: 8% | F81: 12,766.00 | G81: 8% | H81: 12,766.00 | I81: 8% | J81: 12,766.00 | K81: 8% | L81: 1,021.28
A82: 1976-06-01 | B82: 14,872.00 | C82: 8% | D82: 14,872.00 | E82: 8% | F82: 14,872.00 | G82: 8% | H82: 14,872.00 | I82: 8% | J82: 14,872.00 | K82: 8% | L82: 1,189.76
A83: 1976-07-01 | B83: 14,872.00 | C83: 8% | D83: 14,872.00 | E83: 8% | F83: 14,872.00 | G83: 8% | H83: 14,872.00 | I83: 8% | J83: 14,872.00 | K83: 8% | L83: 1,189.76
A84: 1976-08-01 | B84: 14,872.00 | C84: 8% | D84: 14,872.00 | E84: 8% | F84: 14,872.00 | G84: 8% | H84: 14,872.00 | I84: 8% | J84: 14,872.00 | K84: 8% | L84: 1,189.76
A85: 1976-09-01 | B85: 14,872.00 | C85: 8% | D85: 14,872.00 | E85: 8% | F85: 14,872.00 | G85: 8% | H85: 14,872.00 | I85: 8% | J85: 14,872.00 | K85: 8% | L85: 1,189.76
A86: 1976-10-01 | B86: 14,872.00 | C86: 8% | D86: 14,872.00 | E86: 8% | F86: 14,872.00 | G86: 8% | H86: 14,872.00 | I86: 8% | J86: 14,872.00 | K86: 8% | L86: 1,189.76
A87: 1976-11-01 | B87: 14,872.00 | C87: 8% | D87: 14,872.00 | E87: 8% | F87: 14,872.00 | G87: 8% | H87: 14,872.00 | I87: 8% | J87: 14,872.00 | K87: 8% | L87: 1,189.76
A88: 1976-12-01 | B88: 14,872.00 | C88: 8% | D88: 14,872.00 | E88: 8% | F88: 14,872.00 | G88: 8% | H88: 14,872.00 | I88: 8% | J88: 14,872.00 | K88: 8% | L88: 1,189.76
A89: 1977-01-01 | B89: 14,872.00 | C89: 8% | D89: 14,872.00 | E89: 8% | F89: 14,872.00 | G89: 8% | H89: 14,872.00 | I89: 8% | J89: 14,872.00 | K89: 8% | L89: 1,189.76
A90: 1977-02-01 | B90: 14,872.00 | C90: 8% | D90: 14,872.00 | E90: 8% | F90: 14,872.00 | G90: 8% | H90: 14,872.00 | I90: 8% | J90: 14,872.00 | K90: 8% | L90: 1,189.76
A91: 1977-03-01 | B91: 14,872.00 | C91: 8% | D91: 14,872.00 | E91: 8% | F91: 14,872.00 | G91: 8% | H91: 14,872.00 | I91: 8% | J91: 14,872.00 | K91: 8% | L91: 1,189.76
A92: 1977-04-01 | B92: 14,872.00 | C92: 8% | D92: 14,872.00 | E92: 8% | F92: 14,872.00 | G92: 8% | H92: 14,872.00 | I92: 8% | J92: 14,872.00 | K92: 8% | L92: 1,189.76
A93: 1977-05-01 | B93: 20,820.00 | C93: 8% | D93: 20,820.00 | E93: 8% | F93: 20,820.00 | G93: 8% | H93: 20,820.00 | I93: 8% | J93: 20,820.00 | K93: 8% | L93: 1,665.60
A94: 1977-06-01 | B94: 20,820.00 | C94: 8% | D94: 20,820.00 | E94: 8% | F94: 20,820.00 | G94: 8% | H94: 20,820.00 | I94: 8% | J94: 20,820.00 | K94: 8% | L94: 1,665.60
A95: 1977-07-01 | B95: 20,820.00 | C95: 8% | D95: 20,820.00 | E95: 8% | F95: 20,820.00 | G95: 8% | H95: 20,820.00 | I95: 8% | J95: 20,820.00 | K95: 8% | L95: 1,665.60
A96: 1977-08-01 | B96: 20,820.00 | C96: 8% | D96: 20,820.00 | E96: 8% | F96: 20,820.00 | G96: 8% | H96: 20,820.00 | I96: 8% | J96: 20,820.00 | K96: 8% | L96: 1,665.60
A97: 1977-09-01 | B97: 20,820.00 | C97: 8% | D97: 20,820.00 | E97: 8% | F97: 20,820.00 | G97: 8% | H97: 20,820.00 | I97: 8% | J97: 20,820.00 | K97: 8% | L97: 1,665.60
A98: 1977-10-01 | B98: 20,820.00 | C98: 8% | D98: 20,820.00 | E98: 8% | F98: 20,820.00 | G98: 8% | H98: 20,820.00 | I98: 8% | J98: 20,820.00 | K98: 8% | L98: 1,665.60
A99: 1977-11-01 | B99: 20,820.00 | C99: 8% | D99: 20,820.00 | E99: 8% | F99: 20,820.00 | G99: 8% | H99: 20,820.00 | I99: 8% | J99: 20,820.00 | K99: 8% | L99: 1,665.60
A100: 1977-12-01 | B100: 20,820.00 | C100: 8% | D100: 20,820.00 | E100: 8% | F100: 20,820.00 | G100: 8% | H100: 20,820.00 | I100: 8% | J100: 20,820.00 | K100: 8% | L100: 1,665.60
A101: 1978-01-01 | B101: 20,820.00 | C101: 8% | D101: 20,820.00 | E101: 8% | F101: 20,820.00 | G101: 8% | H101: 20,820.00 | I101: 8% | J101: 20,820.00 | K101: 8% | L101: 1,665.60
A102: 1978-02-01 | B102: 20,820.00 | C102: 8% | D102: 20,820.00 | E102: 8% | F102: 20,820.00 | G102: 8% | H102: 20,820.00 | I102: 8% | J102: 20,820.00 | K102: 8% | L102: 1,665.60
A103: 1978-03-01 | B103: 20,820.00 | C103: 8% | D103: 20,820.00 | E103: 8% | F103: 20,820.00 | G103: 8% | H103: 20,820.00 | I103: 8% | J103: 20,820.00 | K103: 8% | L103: 1,665.60
A104: 1978-04-01 | B104: 20,820.00 | C104: 8% | D104: 20,820.00 | E104: 8% | F104: 20,820.00 | G104: 8% | H104: 20,820.00 | I104: 8% | J104: 20,820.00 | K104: 8% | L104: 1,665.60
A105: 1978-05-01 | B105: 28,940.00 | C105: 8% | D105: 28,940.00 | E105: 8% | F105: 28,940.00 | G105: 8% | H105: 28,940.00 | I105: 8% | J105: 28,940.00 | K105: 8% | L105: 2,315.20
A106: 1978-06-01 | B106: 28,940.00 | C106: 8% | D106: 28,940.00 | E106: 8% | F106: 28,940.00 | G106: 8% | H106: 28,940.00 | I106: 8% | J106: 28,940.00 | K106: 8% | L106: 2,315.20
A107: 1978-07-01 | B107: 28,940.00 | C107: 8% | D107: 28,940.00 | E107: 8% | F107: 28,940.00 | G107: 8% | H107: 28,940.00 | I107: 8% | J107: 28,940.00 | K107: 8% | L107: 2,315.20
A108: 1978-08-01 | B108: 28,940.00 | C108: 8% | D108: 28,940.00 | E108: 8% | F108: 28,940.00 | G108: 8% | H108: 28,940.00 | I108: 8% | J108: 28,940.00 | K108: 8% | L108: 2,315.20
A109: 1978-09-01 | B109: 28,940.00 | C109: 8% | D109: 28,940.00 | E109: 8% | F109: 28,940.00 | G109: 8% | H109: 28,940.00 | I109: 8% | J109: 28,940.00 | K109: 8% | L109: 2,315.20
A110: 1978-10-01 | B110: 28,940.00 | C110: 8% | D110: 28,940.00 | E110: 8% | F110: 28,940.00 | G110: 8% | H110: 28,940.00 | I110: 8% | J110: 28,940.00 | K110: 8% | L110: 2,315.20
A111: 1978-11-01 | B111: 28,940.00 | C111: 8% | D111: 28,940.00 | E111: 8% | F111: 28,940.00 | G111: 8% | H111: 28,940.00 | I111: 8% | J111: 28,940.00 | K111: 8% | L111: 2,315.20
A112: 1978-12-01 | B112: 28,940.00 | C112: 8% | D112: 28,940.00 | E112: 8% | F112: 28,940.00 | G112: 8% | H112: 28,940.00 | I112: 8% | J112: 28,940.00 | K112: 8% | L112: 2,315.20
A113: 1979-01-01 | B113: 28,940.00 | C113: 8% | D113: 28,940.00 | E113: 8% | F113: 28,940.00 | G113: 8% | H113: 28,940.00 | I113: 8% | J113: 28,940.00 | K113: 8% | L113: 2,315.20
A114: 1979-02-01 | B114: 28,940.00 | C114: 8% | D114: 28,940.00 | E114: 8% | F114: 28,940.00 | G114: 8% | H114: 28,940.00 | I114: 8% | J114: 28,940.00 | K114: 8% | L114: 2,315.20
A115: 1979-03-01 | B115: 28,940.00 | C115: 8% | D115: 28,940.00 | E115: 8% | F115: 28,940.00 | G115: 8% | H115: 28,940.00 | I115: 8% | J115: 28,940.00 | K115: 8% | L115: 2,315.20
A116: 1979-04-01 | B116: 28,940.00 | C116: 8% | D116: 28,940.00 | E116: 8% | F116: 28,940.00 | G116: 8% | H116: 28,940.00 | I116: 8% | J116: 28,940.00 | K116: 8% | L116: 2,315.20
A117: 1979-05-01 | B117: 41,674.00 | C117: 8% | D117: 41,674.00 | E117: 8% | F117: 41,674.00 | G117: 8% | H117: 41,674.00 | I117: 8% | J117: 41,674.00 | K117: 8% | L117: 3,333.92
A118: 1979-06-01 | B118: 41,674.00 | C118: 8% | D118: 41,674.00 | E118: 8% | F118: 41,674.00 | G118: 8% | H118: 41,674.00 | I118: 8% | J118: 41,674.00 | K118: 8% | L118: 3,333.92
A119: 1979-07-01 | B119: 41,674.00 | C119: 8% | D119: 41,674.00 | E119: 8% | F119: 41,674.00 | G119: 8% | H119: 41,674.00 | I119: 8% | J119: 41,674.00 | K119: 8% | L119: 3,333.92
A120: 1979-08-01 | B120: 41,674.00 | C120: 8% | D120: 41,674.00 | E120: 8% | F120: 41,674.00 | G120: 8% | H120: 41,674.00 | I120: 8% | J120: 41,674.00 | K120: 8% | L120: 3,333.92
A121: 1979-09-01 | B121: 41,674.00 | C121: 8% | D121: 41,674.00 | E121: 8% | F121: 41,674.00 | G121: 8% | H121: 41,674.00 | I121: 8% | J121: 41,674.00 | K121: 8% | L121: 3,333.92
A122: 1979-10-01 | B122: 41,674.00 | C122: 8% | D122: 41,674.00 | E122: 8% | F122: 41,674.00 | G122: 8% | H122: 41,674.00 | I122: 8% | J122: 41,674.00 | K122: 8% | L122: 3,333.92
A123: 1979-11-01 | B123: 51,929.00 | C123: 8% | D123: 51,929.00 | E123: 8% | F123: 51,929.00 | G123: 8% | H123: 51,929.00 | I123: 8% | J123: 51,929.00 | K123: 8% | L123: 4,154.32
A124: 1979-12-01 | B124: 51,929.00 | C124: 8% | D124: 51,929.00 | E124: 8% | F124: 51,929.00 | G124: 8% | H124: 51,929.00 | I124: 8% | J124: 51,929.00 | K124: 8% | L124: 4,154.32
A125: 1980-01-01 | B125: 51,930.00 | C125: 8% | D125: 51,930.00 | E125: 8% | F125: 51,930.00 | G125: 8% | H125: 51,930.00 | I125: 8% | J125: 51,930.00 | K125: 8% | L125: 4,154.40
A126: 1980-02-01 | B126: 51,930.00 | C126: 8% | D126: 51,930.00 | E126: 8% | F126: 51,930.00 | G126: 8% | H126: 51,930.00 | I126: 8% | J126: 51,930.00 | K126: 8% | L126: 4,154.40
A127: 1980-03-01 | B127: 51,930.00 | C127: 8% | D127: 51,930.00 | E127: 8% | F127: 51,930.00 | G127: 8% | H127: 51,930.00 | I127: 8% | J127: 51,930.00 | K127: 8% | L127: 4,154.40
A128: 1980-04-01 | B128: 51,930.00 | C128: 8% | D128: 51,930.00 | E128: 8% | F128: 51,930.00 | G128: 8% | H128: 51,930.00 | I128: 8% | J128: 51,930.00 | K128: 8% | L128: 4,154.40
A129: 1980-05-01 | B129: 70,136.00 | C129: 8% | D129: 70,136.00 | E129: 8% | F129: 70,136.00 | G129: 8% | H129: 70,136.00 | I129: 8% | J129: 70,136.00 | K129: 8% | L129: 5,610.88
A130: 1980-06-01 | B130: 70,136.00 | C130: 8% | D130: 70,136.00 | E130: 8% | F130: 70,136.00 | G130: 8% | H130: 70,136.00 | I130: 8% | J130: 70,136.00 | K130: 8% | L130: 5,610.88
A131: 1980-07-01 | B131: 70,136.00 | C131: 8% | D131: 70,136.00 | E131: 8% | F131: 70,136.00 | G131: 8% | H131: 70,136.00 | I131: 8% | J131: 70,136.00 | K131: 8% | L131: 5,610.88
A132: 1980-08-01 | B132: 70,136.00 | C132: 8% | D132: 70,136.00 | E132: 8% | F132: 70,136.00 | G132: 8% | H132: 70,136.00 | I132: 8% | J132: 70,136.00 | K132: 8% | L132: 5,610.88
A133: 1980-09-01 | B133: 70,136.00 | C133: 8% | D133: 70,136.00 | E133: 8% | F133: 70,136.00 | G133: 8% | H133: 70,136.00 | I133: 8% | J133: 70,136.00 | K133: 8% | L133: 5,610.88
A134: 1980-10-01 | B134: 70,136.00 | C134: 8% | D134: 70,136.00 | E134: 8% | F134: 70,136.00 | G134: 8% | H134: 70,136.00 | I134: 8% | J134: 70,136.00 | K134: 8% | L134: 5,610.88
A135: 1980-11-01 | B135: 93,706.00 | C135: 8% | D135: 93,706.00 | E135: 8% | F135: 93,706.00 | G135: 8% | H135: 93,706.00 | I135: 8% | J135: 93,706.00 | K135: 8% | L135: 7,496.48
A136: 1980-12-01 | B136: 93,706.00 | C136: 8% | D136: 93,706.00 | E136: 8% | F136: 93,706.00 | G136: 8% | H136: 93,706.00 | I136: 8% | J136: 93,706.00 | K136: 8% | L136: 7,496.48
A137: 1981-01-01 | B137: 93,706.00 | C137: 8% | D137: 93,706.00 | E137: 8% | F137: 93,706.00 | G137: 8% | H137: 93,706.00 | I137: 8% | J137: 93,706.00 | K137: 8% | L137: 7,496.48
A138: 1981-02-01 | B138: 93,706.00 | C138: 8% | D138: 93,706.00 | E138: 8% | F138: 93,706.00 | G138: 8% | H138: 93,706.00 | I138: 8% | J138: 93,706.00 | K138: 8% | L138: 7,496.48
A139: 1981-03-01 | B139: 93,706.00 | C139: 8% | D139: 93,706.00 | E139: 8% | F139: 93,706.00 | G139: 8% | H139: 93,706.00 | I139: 8% | J139: 93,706.00 | K139: 8% | L139: 7,496.48
A140: 1981-04-01 | B140: 93,706.00 | C140: 8% | D140: 93,706.00 | E140: 8% | F140: 93,706.00 | G140: 8% | H140: 93,706.00 | I140: 8% | J140: 93,706.00 | K140: 8% | L140: 7,496.48
A141: 1981-05-01 | B141: 133,540.00 | C141: 8% | D141: 133,540.00 | E141: 8% | F141: 133,540.00 | G141: 8% | H141: 133,540.00 | I141: 8% | J141: 133,540.00 | K141: 8% | L141: 10,683.20
A142: 1981-06-01 | B142: 133,540.00 | C142: 8% | D142: 133,540.00 | E142: 8% | F142: 133,540.00 | G142: 8% | H142: 133,540.00 | I142: 8% | J142: 133,540.00 | K142: 8% | L142: 10,683.20
A143: 1981-07-01 | B143: 133,540.00 | C143: 8% | D143: 133,540.00 | E143: 8% | F143: 133,540.00 | G143: 8% | H143: 133,540.00 | I143: 8% | J143: 133,540.00 | K143: 8% | L143: 10,683.20
A144: 1981-08-01 | B144: 133,540.00 | C144: 8% | D144: 133,540.00 | E144: 8% | F144: 133,540.00 | G144: 8% | H144: 133,540.00 | I144: 8% | J144: 133,540.00 | K144: 8% | L144: 10,683.20
A145: 1981-09-01 | B145: 133,540.00 | C145: 8% | D145: 133,540.00 | E145: 8% | F145: 133,540.00 | G145: 8% | H145: 133,540.00 | I145: 8% | J145: 133,540.00 | K145: 8% | L145: 10,683.20
A146: 1981-10-01 | B146: 133,540.00 | C146: 8% | D146: 133,540.00 | E146: 8% | F146: 133,540.00 | G146: 8% | H146: 133,540.00 | I146: 8% | J146: 133,540.00 | K146: 8% | L146: 10,683.20
A147: 1981-11-01 | B147: 184,390.00 | C147: 8% | D147: 184,390.00 | E147: 8% | F147: 184,390.00 | G147: 8% | H147: 184,390.00 | I147: 8% | J147: 184,390.00 | K147: 8% | L147: 14,751.20
A148: 1981-12-01 | B148: 238,560.00 | C148: 8% | D148: 238,560.00 | E148: 8% | F148: 238,560.00 | G148: 8% | H148: 238,560.00 | I148: 8% | J148: 238,560.00 | K148: 8% | L148: 19,084.80
A149: 1982-01-01 | B149: 35,784.00 | C149: 8.50% | D149: 59,640.00 | E149: 8.75% | F149: 119,280.00 | G149: 9.00% | H149: 178,920.00 | I149: 9.50% | J149: 238,560.00 | K149: 10.00% | L149: 23,856.00
A150: 1982-02-01 | B150: 35,784.00 | C150: 8.50% | D150: 59,640.00 | E150: 8.75% | F150: 119,280.00 | G150: 9.00% | H150: 178,920.00 | I150: 9.50% | J150: 238,560.00 | K150: 10.00% | L150: 23,856.00
A151: 1982-03-01 | B151: 35,784.00 | C151: 8.50% | D151: 59,640.00 | E151: 8.75% | F151: 119,280.00 | G151: 9.00% | H151: 178,920.00 | I151: 9.50% | J151: 238,560.00 | K151: 10.00% | L151: 23,856.00
A152: 1982-04-01 | B152: 35,784.00 | C152: 8.50% | D152: 59,640.00 | E152: 8.75% | F152: 119,280.00 | G152: 9.00% | H152: 178,920.00 | I152: 9.50% | J152: 238,560.00 | K152: 10.00% | L152: 23,856.00
A153: 1982-05-01 | B153: 49,824.00 | C153: 8.50% | D153: 83,040.00 | E153: 8.75% | F153: 166,080.00 | G153: 9.00% | H153: 249,120.00 | I153: 9.50% | J153: 322,160.00 | K153: 10.00% | L153: 32,216.00
A154: 1982-06-01 | B154: 49,824.00 | C154: 8.50% | D154: 83,040.00 | E154: 8.75% | F154: 166,080.00 | G154: 9.00% | H154: 249,120.00 | I154: 9.50% | J154: 322,160.00 | K154: 10.00% | L154: 32,216.00
A155: 1982-07-01 | B155: 49,824.00 | C155: 8.50% | D155: 83,040.00 | E155: 8.75% | F155: 166,080.00 | G155: 9.00% | H155: 249,120.00 | I155: 9.50% | J155: 322,160.00 | K155: 10.00% | L155: 32,216.00
A156: 1982-08-01 | B156: 49,824.00 | C156: 8.50% | D156: 83,040.00 | E156: 8.75% | F156: 166,080.00 | G156: 9.00% | H156: 249,120.00 | I156: 9.50% | J156: 322,160.00 | K156: 10.00% | L156: 32,216.00
A157: 1982-09-01 | B157: 49,824.00 | C157: 8.50% | D157: 83,040.00 | E157: 8.75% | F157: 166,080.00 | G157: 9.00% | H157: 249,120.00 | I157: 9.50% | J157: 322,160.00 | K157: 10.00% | L157: 32,216.00
A158: 1982-10-01 | B158: 49,824.00 | C158: 8.50% | D158: 83,040.00 | E158: 8.75% | F158: 166,080.00 | G158: 9.00% | H158: 249,120.00 | I158: 9.50% | J158: 322,160.00 | K158: 10.00% | L158: 32,216.00
A159: 1982-11-01 | B159: 70,704.00 | C159: 8.50% | D159: 117,840.00 | E159: 8.75% | F159: 235,680.00 | G159: 9.00% | H159: 353,520.00 | I159: 9.50% | J159: 471,360.00 | K159: 10.00% | L159: 47,136.00
A160: 1982-12-01 | B160: 70,704.00 | C160: 8.50% | D160: 117,840.00 | E160: 8.75% | F160: 235,680.00 | G160: 9.00% | H160: 353,520.00 | I160: 9.50% | J160: 471,360.00 | K160: 10.00% | L160: 47,136.00
A161: 1983-01-01 | B161: 70,704.00 | C161: 8.50% | D161: 117,840.00 | E161: 8.75% | F161: 235,680.00 | G161: 9.00% | H161: 353,520.00 | I161: 9.50% | J161: 471,360.00 | K161: 10.00% | L161: 47,136.00
A162: 1983-02-01 | B162: 70,704.00 | C162: 8.50% | D162: 117,840.00 | E162: 8.75% | F162: 235,680.00 | G162: 9.00% | H162: 353,520.00 | I162: 9.50% | J162: 471,360.00 | K162: 10.00% | L162: 47,136.00
A163: 1983-03-01 | B163: 70,704.00 | C163: 8.50% | D163: 117,840.00 | E163: 8.75% | F163: 235,680.00 | G163: 9.00% | H163: 353,520.00 | I163: 9.50% | J163: 471,360.00 | K163: 10.00% | L163: 47,136.00
A164: 1983-04-01 | B164: 70,704.00 | C164: 8.50% | D164: 117,840.00 | E164: 8.75% | F164: 235,680.00 | G164: 9.00% | H164: 353,520.00 | I164: 9.50% | J164: 471,360.00 | K164: 10.00% | L164: 47,136.00
A165: 1983-05-01 | B165: 104,328.00 | C165: 8.50% | D165: 173,880.00 | E165: 8.75% | F165: 347,760.00 | G165: 9.00% | H165: 521,640.00 | I165: 9.50% | J165: 695,520.00 | K165: 10.00% | L165: 69,552.00
A166: 1983-06-01 | B166: 104,328.00 | C166: 8.50% | D166: 173,880.00 | E166: 8.75% | F166: 347,760.00 | G166: 9.00% | H166: 521,640.00 | I166: 9.50% | J166: 695,520.00 | K166: 10.00% | L166: 69,552.00
A167: 1983-07-01 | B167: 104,328.00 | C167: 8.50% | D167: 173,880.00 | E167: 8.75% | F167: 347,760.00 | G167: 9.00% | H167: 521,640.00 | I167: 9.50% | J167: 695,520.00 | K167: 10.00% | L167: 69,552.00
A168: 1983-08-01 | B168: 104,328.00 | C168: 8.50% | D168: 173,880.00 | E168: 8.75% | F168: 347,760.00 | G168: 9.00% | H168: 521,640.00 | I168: 9.50% | J168: 695,520.00 | K168: 10.00% | L168: 69,552.00
A169: 1983-09-01 | B169: 104,328.00 | C169: 8.50% | D169: 173,880.00 | E169: 8.75% | F169: 347,760.00 | G169: 9.00% | H169: 521,640.00 | I169: 9.50% | J169: 695,520.00 | K169: 10.00% | L169: 69,552.00
A170: 1983-10-01 | B170: 104,328.00 | C170: 8.50% | D170: 173,880.00 | E170: 8.75% | F170: 347,760.00 | G170: 9.00% | H170: 521,640.00 | I170: 9.50% | J170: 695,520.00 | K170: 10.00% | L170: 69,552.00
A171: 1983-11-01 | B171: 171,360.00 | C171: 8.50% | D171: 285,600.00 | E171: 8.75% | F171: 571,200.00 | G171: 9.00% | H171: 856,800.00 | I171: 9.50% | J171: 1,142,400.00 | K171: 10.00% | L171: 114,240.00
A172: 1983-12-01 | B172: 171,360.00 | C172: 8.50% | D172: 285,600.00 | E172: 8.75% | F172: 571,200.00 | G172: 9.00% | H172: 856,800.00 | I172: 9.50% | J172: 1,142,400.00 | K172: 10.00% | L172: 114,240.00
A173: 1984-01-01 | B173: 171,360.00 | C173: 8.50% | D173: 285,600.00 | E173: 8.75% | F173: 571,200.00 | G173: 9.00% | H173: 856,800.00 | I173: 9.50% | J173: 1,142,400.00 | K173: 10.00% | L173: 114,240.00
A174: 1984-02-01 | B174: 171,360.00 | C174: 8.50% | D174: 285,600.00 | E174: 8.75% | F174: 571,200.00 | G174: 9.00% | H174: 856,800.00 | I174: 9.50% | J174: 1,142,400.00 | K174: 10.00% | L174: 114,240.00
A175: 1984-03-01 | B175: 171,360.00 | C175: 8.50% | D175: 285,600.00 | E175: 8.75% | F175: 571,200.00 | G175: 9.00% | H175: 856,800.00 | I175: 9.50% | J175: 1,142,400.00 | K175: 10.00% | L175: 114,240.00
A176: 1984-04-01 | B176: 171,360.00 | C176: 8.50% | D176: 285,600.00 | E176: 8.75% | F176: 571,200.00 | G176: 9.00% | H176: 856,800.00 | I176: 9.50% | J176: 1,142,400.00 | K176: 10.00% | L176: 114,240.00
A177: 1984-05-01 | B177: 291,528.00 | C177: 8.50% | D177: 485,880.00 | E177: 8.75% | F177: 971,760.00 | G177: 9.00% | H177: 1,457,640.00 | I177: 9.50% | J177: 1,943,520.00 | K177: 10.00% | L177: 194,352.00
A178: 1984-06-01 | B178: 291,528.00 | C178: 8.50% | D178: 485,880.00 | E178: 8.75% | F178: 971,760.00 | G178: 9.00% | H178: 1,457,640.00 | I178: 9.50% | J178: 1,943,520.00 | K178: 10.00% | L178: 194,352.00
A179: 1984-07-01 | B179: 291,528.00 | C179: 8.50% | D179: 485,880.00 | E179: 8.75% | F179: 971,760.00 | G179: 9.00% | H179: 1,457,640.00 | I179: 9.50% | J179: 1,943,520.00 | K179: 10.00% | L179: 194,352.00
A180: 1984-08-01 | B180: 291,528.00 | C180: 8.50% | D180: 485,880.00 | E180: 8.75% | F180: 971,760.00 | G180: 9.00% | H180: 1,457,640.00 | I180: 9.50% | J180: 1,943,520.00 | K180: 10.00% | L180: 194,352.00
A181: 1984-09-01 | B181: 291,528.00 | C181: 8.50% | D181: 485,880.00 | E181: 8.75% | F181: 971,760.00 | G181: 9.00% | H181: 1,457,640.00 | I181: 9.50% | J181: 1,943,520.00 | K181: 10.00% | L181: 194,352.00
A182: 1984-10-01 | B182: 291,528.00 | C182: 8.50% | D182: 485,880.00 | E182: 8.75% | F182: 971,760.00 | G182: 9.00% | H182: 1,457,640.00 | I182: 9.50% | J182: 1,943,520.00 | K182: 10.00% | L182: 194,352.00
A183: 1984-11-01 | B183: 499,680.00 | C183: 8.50% | D183: 832,800.00 | E183: 8.75% | F183: 1,665,600.00 | G183: 9.00% | H183: 2,498,400.00 | I183: 9.50% | J183: 3,331,200.00 | K183: 10.00% | L183: 333,120.00
A184: 1984-12-01 | B184: 499,680.00 | C184: 8.50% | D184: 832,800.00 | E184: 8.75% | F184: 1,665,600.00 | G184: 9.00% | H184: 2,498,400.00 | I184: 9.50% | J184: 3,331,200.00 | K184: 10.00% | L184: 333,120.00
A185: 1985-01-01 | B185: 499,680.00 | C185: 8.50% | D185: 832,800.00 | E185: 8.75% | F185: 1,665,600.00 | G185: 9.00% | H185: 2,498,400.00 | I185: 9.50% | J185: 3,331,200.00 | K185: 10.00% | L185: 333,120.00
A186: 1985-02-01 | B186: 499,680.00 | C186: 8.50% | D186: 832,800.00 | E186: 8.75% | F186: 1,665,600.00 | G186: 9.00% | H186: 2,498,400.00 | I186: 9.50% | J186: 3,331,200.00 | K186: 10.00% | L186: 333,120.00
A187: 1985-03-01 | B187: 499,680.00 | C187: 8.50% | D187: 832,800.00 | E187: 8.75% | F187: 1,665,600.00 | G187: 9.00% | H187: 2,498,400.00 | I187: 9.50% | J187: 3,331,200.00 | K187: 10.00% | L187: 333,120.00
A188: 1985-04-01 | B188: 499,680.00 | C188: 8.50% | D188: 832,800.00 | E188: 8.75% | F188: 1,665,600.00 | G188: 9.00% | H188: 2,498,400.00 | I188: 9.50% | J188: 3,331,200.00 | K188: 10.00% | L188: 333,120.00
A189: 1985-05-01 | B189: 999,360.00 | C189: 8.50% | D189: 1,665,600.00 | E189: 8.75% | F189: 3,331,200.00 | G189: 9.00% | H189: 4,996,800.00 | I189: 9.50% | J189: 6,662,400.00 | K189: 10.00% | L189: 666,240.00
A190: 1985-06-01 | B190: 999,360.00 | C190: 8.50% | D190: 1,665,600.00 | E190: 8.75% | F190: 3,331,200.00 | G190: 9.00% | H190: 4,996,800.00 | I190: 9.50% | J190: 6,662,400.00 | K190: 10.00% | L190: 666,240.00
A191: 1985-07-01 | B191: 999,360.00 | C191: 8.50% | D191: 1,665,600.00 | E191: 8.75% | F191: 3,331,200.00 | G191: 9.00% | H191: 4,996,800.00 | I191: 9.50% | J191: 6,662,400.00 | K191: 10.00% | L191: 666,240.00
A192: 1985-08-01 | B192: 999,360.00 | C192: 8.50% | D192: 1,665,600.00 | E192: 8.75% | F192: 3,331,200.00 | G192: 9.00% | H192: 4,996,800.00 | I192: 9.50% | J192: 6,662,400.00 | K192: 10.00% | L192: 666,240.00
A193: 1985-09-01 | B193: 999,360.00 | C193: 8.50% | D193: 1,665,600.00 | E193: 8.75% | F193: 3,331,200.00 | G193: 9.00% | H193: 4,996,800.00 | I193: 9.50% | J193: 6,662,400.00 | K193: 10.00% | L193: 666,240.00
A194: 1985-10-01 | B194: 999,360.00 | C194: 8.50% | D194: 1,665,600.00 | E194: 8.75% | F194: 3,331,200.00 | G194: 9.00% | H194: 4,996,800.00 | I194: 9.50% | J194: 6,662,400.00 | K194: 10.00% | L194: 666,240.00
A195: 1985-11-01 | B195: 1,800,000.00 | C195: 8.50% | D195: 3,000,000.00 | E195: 8.75% | F195: 6,000,000.00 | G195: 9.00% | H195: 9,000,000.00 | I195: 9.50% | J195: 12,000,000.00 | K195: 10.00% | L195: 1,200,000.00
A196: 1985-12-01 | B196: 1,800,000.00 | C196: 8.50% | D196: 3,000,000.00 | E196: 8.75% | F196: 6,000,000.00 | G196: 9.00% | H196: 9,000,000.00 | I196: 9.50% | J196: 12,000,000.00 | K196: 10.00% | L196: 1,200,000.00
A197: 1986-01-01 | B197: 1,800,000.00 | C197: 8.50% | D197: 3,000,000.00 | E197: 8.75% | F197: 6,000,000.00 | G197: 9.00% | H197: 9,000,000.00 | I197: 9.50% | J197: 12,000,000.00 | K197: 10.00% | L197: 1,200,000.00
A198: 1986-02-01 | B198: 1,800,000.00 | C198: 8.50% | D198: 3,000,000.00 | E198: 8.75% | F198: 6,000,000.00 | G198: 9.00% | H198: 9,000,000.00 | I198: 9.50% | J198: 12,000,000.00 | K198: 10.00% | L198: 1,200,000.00
A199: 1986-03-01 | B199: 2,412.00 | C199: 8.50% | D199: 4,020.00 | E199: 8.75% | F199: 8,040.00 | G199: 9.00% | H199: 12,060.00 | I199: 9.50% | J199: 16,080.00 | K199: 10.00% | L199: 1,608.00
A200: 1986-04-01 | B200: 2,412.00 | C200: 8.50% | D200: 4,020.00 | E200: 8.75% | F200: 8,040.00 | G200: 9.00% | H200: 12,060.00 | I200: 9.50% | J200: 16,080.00 | K200: 10.00% | L200: 1,608.00
A201: 1986-05-01 | B201: 2,412.00 | C201: 8.50% | D201: 4,020.00 | E201: 8.75% | F201: 8,040.00 | G201: 9.00% | H201: 12,060.00 | I201: 9.50% | J201: 16,080.00 | K201: 10.00% | L201: 1,608.00
... 463 more rows

Sheet Aliq_IRRF
A1: IRRF
A4: data | B4: isenção | C4: A DEDUZIR | D4: 1ª FAIXA | E4: % IRRF | F4: A DEDUZIR | G4: 2ª FAIXA | H4: % IRRF | I4: A DEDUZIR | J4: 3ª FAIXA | K4: %IRRF | L4: A DEDUZIR | M4: 4ª FAIXA | N4: %IRRF | O4: A DEDUZIR | P4: Dependentes | Q4: DEDUÇÃO/ABONO
A5: 1991-02-01 | B5: 0.00% | C5: 0 | D5: 72,311.00 | E5: 10.00% | F5: 7,231.10 | G5: 241,038.00 | H5: 25.00% | I5: 43,386.80 | J5: 241,038.00 | K5: 25.00% | L5: 43,386.80 | M5: =J5 -> 241,038.00 | N5: =K5 -> 25.00% | O5: =L5 -> 43,386.80
A6: 1991-03-01 | B6: 0.00% | C6: 0 | D6: 72,311.00 | E6: 10.00% | F6: 7,231.10 | G6: 241,038.00 | H6: 25.00% | I6: 43,386.80 | J6: 241,038.00 | K6: 25.00% | L6: 43,386.80 | M6: =J6 -> 241,038.00 | N6: 25.00% | O6: 43,386.80
A7: 1991-04-01 | B7: 0.00% | C7: 0 | D7: 72,311.00 | E7: 10.00% | F7: 7,231.10 | G7: 241,038.00 | H7: 25.00% | I7: 43,386.80 | J7: 241,038.00 | K7: 25.00% | L7: 43,386.80 | M7: 241,038.00 | N7: 25.00% | O7: 43,386.80
A8: 1991-05-01 | B8: 0.00% | C8: 0 | D8: 72,311.00 | E8: 10.00% | F8: 7,231.10 | G8: 241,038.00 | H8: 25.00% | I8: 43,386.80 | J8: 241,038.00 | K8: 25.00% | L8: 43,386.80 | M8: 241,038.00 | N8: 25.00% | O8: 43,386.80
A9: 1991-06-01 | B9: 0.00% | C9: 0 | D9: 72,311.00 | E9: 10.00% | F9: 7,231.10 | G9: 241,038.00 | H9: 25.00% | I9: 43,386.80 | J9: 241,038.00 | K9: 25.00% | L9: 43,386.80 | M9: 241,038.00 | N9: 25.00% | O9: 43,386.80
A10: 1991-07-01 | B10: 0.00% | C10: 0 | D10: 72,311.00 | E10: 10.00% | F10: 7,231.10 | G10: 241,038.00 | H10: 25.00% | I10: 43,386.80 | J10: 241,038.00 | K10: 25.00% | L10: 43,386.80 | M10: 241,038.00 | N10: 25.00% | O10: 43,386.80
A11: 1991-08-01 | B11: 0.00% | C11: 0 | D11: 120,000.00 | E11: 10.00% | F11: 12,000.00 | G11: 400,000.00 | H11: 25.00% | I11: 72,000.00 | J11: 400,000.00 | K11: 25.00% | L11: 72,000.00 | M11: 400,000.00 | N11: 25.00% | O11: 72,000.00
A12: 1991-09-01 | B12: 0.00% | C12: 0 | D12: 120,000.00 | E12: 10.00% | F12: 12,000.00 | G12: 400,000.00 | H12: 25.00% | I12: 72,000.00 | J12: 400,000.00 | K12: 25.00% | L12: 72,000.00 | M12: 400,000.00 | N12: 25.00% | O12: 72,000.00
A13: 1991-10-01 | B13: 0.00% | C13: 0 | D13: 120,000.00 | E13: 10.00% | F13: 12,000.00 | G13: 400,000.00 | H13: 25.00% | I13: 72,000.00 | J13: 400,000.00 | K13: 25.00% | L13: 72,000.00 | M13: 400,000.00 | N13: 25.00% | O13: 72,000.00
A14: 1991-11-01 | B14: 0.00% | C14: 0 | D14: 190,000.00 | E14: 10.00% | F14: 19,000.00 | G14: 620,000.00 | H14: 25.00% | I14: 112,000.00 | J14: 620,000.00 | K14: 25.00% | L14: 112,000.00 | M14: 620,000.00 | N14: 25.00% | O14: 112,000.00
A15: 1991-12-01 | B15: 0.00% | C15: 0 | D15: 250,000.00 | E15: 10.00% | F15: 25,000.00 | G15: 750,000.00 | H15: 25.00% | I15: 137,500.00 | J15: 750,000.00 | K15: 25.00% | L15: 137,500.00 | M15: 750,000.00 | N15: 25.00% | O15: 137,500.00
A16: 1992-01-01 | B16: 0.00% | C16: 0 | D16: 597,060.00 | E16: 15.00% | F16: 80,559.00 | G16: 1,164,267.00 | H16: 25.00% | I16: 205,988.00 | J16: 1,164,267.00 | K16: 25.00% | L16: 205,988.00 | M16: 1,164,267.00 | N16: 25.00% | O16: 205,988.00
A17: 1992-02-01 | B17: 0.00% | C17: 0 | D17: 749,100.00 | E17: 15.00% | F17: 112,847.00 | G17: 1,462,324.00 | H17: 25.00% | I17: 258,719.00 | J17: 1,462,324.00 | K17: 25.00% | L17: 258,719.00 | M17: 1,462,324.00 | N17: 25.00% | O17: 258,719.00
A18: 1992-03-01 | B18: 0.00% | C18: 0 | D18: 945,640.00 | E18: 15.00% | F18: 141,846.00 | G18: 1,843,998.00 | H18: 25.00% | I18: 326,846.00 | J18: 1,843,998.00 | K18: 25.00% | L18: 326,846.00 | M18: 1,843,998.00 | N18: 25.00% | O18: 326,846.00
A19: 1992-04-01 | B19: 0.00% | C19: 0 | D19: 1,153,960.00 | E19: 15.00% | F19: 173,094.00 | G19: 2,250,222.00 | H19: 25.00% | I19: 398,117.00 | J19: 2,250,222.00 | K19: 25.00% | L19: 398,117.00 | M19: 2,250,222.00 | N19: 25.00% | O19: 398,117.00
A20: 1992-05-01 | B20: 0.00% | C20: 0 | D20: 1,382,790.00 | E20: 15.00% | F20: 207,419.00 | G20: 2,698,441.00 | H20: 25.00% | I20: 477,063.00 | J20: 2,698,441.00 | K20: 25.00% | L20: 477,063.00 | M20: 2,698,441.00 | N20: 25.00% | O20: 477,063.00
A21: 1992-06-01 | B21: 0.00% | C21: 0 | D21: 1,707,050.00 | E21: 15.00% | F21: 256,058.00 | G21: 3,328,748.00 | H21: 25.00% | I21: 588,933.00 | J21: 3,328,748.00 | K21: 25.00% | L21: 588,933.00 | M21: 3,328,748.00 | N21: 25.00% | O21: 588,933.00
A22: 1992-07-01 | B22: 0.00% | C22: 0 | D22: 2,104,280.00 | E22: 15.00% | F22: 315,642.00 | G22: 4,103,346.00 | H22: 25.00% | I22: 725,977.00 | J22: 4,103,346.00 | K22: 25.00% | L22: 725,977.00 | M22: 4,103,346.00 | N22: 25.00% | O22: 725,977.00
A23: 1992-08-01 | B23: 0.00% | C23: 0 | D23: 2,546,390.00 | E23: 15.00% | F23: 381,959.00 | G23: 4,695,461.00 | H23: 25.00% | I23: 878,505.00 | J23: 4,695,461.00 | K23: 25.00% | L23: 878,505.00 | M23: 4,695,461.00 | N23: 25.00% | O23: 878,505.00
A24: 1992-09-01 | B24: 0.00% | C24: 0 | D24: 3,135,620.00 | E24: 15.00% | F24: 470,343.00 | G24: 6,114,459.00 | H24: 25.00% | I24: 1,081,789.00 | J24: 6,114,459.00 | K24: 25.00% | L24: 1,081,789.00 | M24: 6,114,459.00 | N24: 25.00% | O24: 1,081,789.00
A25: 1992-10-01 | B25: 0.00% | C25: 0 | D25: 3,867,160.00 | E25: 15.00% | F25: 580,074.00 | G25: 7,540,962.00 | H25: 25.00% | I25: 1,334,170.00 | J25: 7,540,962.00 | K25: 25.00% | L25: 1,334,170.00 | M25: 7,540,962.00 | N25: 25.00% | O25: 1,334,170.00
A26: 1992-11-01 | B26: 0.00% | C26: 0 | D26: 4,852,510.00 | E26: 15.00% | F26: 727,877.00 | G26: 9,462,395.00 | H26: 25.00% | I26: 1,674,117.00 | J26: 9,462,395.00 | K26: 25.00% | L26: 1,674,117.00 | M26: 9,462,395.00 | N26: 25.00% | O26: 1,674,117.00
A27: 1992-12-01 | B27: 0.00% | C27: 0 | D27: 6,002,550.00 | E27: 15.00% | F27: 900,383.00 | G27: 11,704,973.00 | H27: 25.00% | I27: 2,070,880.00 | J27: 11,704,973.00 | K27: 25.00% | L27: 2,070,880.00 | M27: 11,704,973.00 | N27: 25.00% | O27: 2,070,880.00
A28: 1993-01-01 | B28: 0.00% | C28: 0 | D28: 7,412,550.00 | E28: 15.00% | F28: 1,111,883.00 | G28: 14,454,742.00 | H28: 25.00% | I28: 2,557,330.00 | J28: 14,454,742.00 | K28: 25.00% | L28: 2,557,330.00 | M28: 14,454,742.00 | N28: 25.00% | O28: 2,557,330.00
A29: 1993-02-01 | B29: 0.00% | C29: 0 | D29: 9,597,030.00 | E29: 15.00% | F29: 1,439,555.00 | G29: 18,714,209.00 | H29: 25.00% | I29: 3,310,976.00 | J29: 18,714,209.00 | K29: 25.00% | L29: 3,310,976.00 | M29: 18,714,209.00 | N29: 25.00% | O29: 3,310,976.00
A30: 1993-03-01 | B30: 0.00% | C30: 0 | D30: 12,161,360.00 | E30: 15.00% | F30: 1,824,204.00 | G30: 23,714,652.00 | H30: 25.00% | I30: 4,195,669.00 | J30: 23,714,652.00 | K30: 25.00% | L30: 4,195,669.00 | M30: 23,714,652.00 | N30: 25.00% | O30: 4,195,669.00
A31: 1993-04-01 | B31: 0.00% | C31: 0 | D31: 15,318,450.00 | E31: 15.00% | F31: 2,297,768.00 | G31: 29,870,978.00 | H31: 25.00% | I31: 5,284,865.00 | J31: 29,870,978.00 | K31: 25.00% | L31: 5,284,865.00 | M31: 29,870,978.00 | N31: 25.00% | O31: 5,284,865.00
A32: 1993-05-01 | B32: 0.00% | C32: 0 | D32: 19,506,520.00 | E32: 15.00% | F32: 2,925,978.00 | G32: 38,037,714.00 | H32: 25.00% | I32: 6,729,749.00 | J32: 38,037,714.00 | K32: 25.00% | L32: 6,729,749.00 | M32: 38,037,714.00 | N32: 25.00% | O32: 6,729,749.00
A33: 1993-06-01 | B33: 0.00% | C33: 0 | D33: 25,126,350.00 | E33: 15.00% | F33: 3,768,953.00 | G33: 48,996,382.00 | H33: 25.00% | I33: 8,668,591.00 | J33: 48,996,382.00 | K33: 25.00% | L33: 8,668,591.00 | M33: 48,996,382.00 | N33: 25.00% | O33: 8,668,591.00
A34: 1993-07-01 | B34: 0.00% | C34: 0 | D34: 32,749,680.00 | E34: 15.00% | F34: 4,912,452.00 | G34: 63,861,876.00 | H34: 25.00% | I34: 11,298,640.00 | J34: 63,861,876.00 | K34: 25.00% | L34: 11,298,640.00 | M34: 63,861,876.00 | N34: 25.00% | O34: 11,298,640.00
A35: 1993-08-01 | B35: 0.00% | C35: 0 | D35: 42,790.00 | E35: 15.00% | F35: 6,418.50 | G35: 83,440.50 | H35: 25.00% | I35: 14,762.55 | J35: 83,440.50 | K35: 25.00% | L35: 14,762.55 | M35: 83,440.50 | N35: 25.00% | O35: 14,762.55
A36: 1993-09-01 | B36: 0.00% | C36: 0 | D36: 56,480.00 | E36: 15.00% | F36: 8,472.00 | G36: 110,136.00 | H36: 25.00% | I36: 19,485.60 | J36: 110,136.00 | K36: 25.00% | L36: 19,485.60 | M36: 110,136.00 | N36: 25.00% | O36: 19,485.60
A37: 1993-10-01 | B37: 0.00% | C37: 0 | D37: 75,900.00 | E37: 15.00% | F37: 11,385.00 | G37: 148,005.00 | H37: 25.00% | I37: 26,185.50 | J37: 148,005.00 | K37: 25.00% | L37: 26,185.50 | M37: 148,005.00 | N37: 25.00% | O37: 26,185.50
A38: 1993-11-01 | B38: 0.00% | C38: 0 | D38: 102,590.00 | E38: 15.00% | F38: 15,388.50 | G38: 200,050.50 | H38: 25.00% | I38: 35,393.55 | J38: 200,050.50 | K38: 25.00% | L38: 35,393.55 | M38: 200,050.50 | N38: 25.00% | O38: 35,393.55
A39: 1993-12-01 | B39: 0.00% | C39: 0 | D39: 137,370.00 | E39: 15.00% | F39: 20,605.50 | G39: 267,871.50 | H39: 25.00% | I39: 67,392.65 | J39: 267,871.50 | K39: 25.00% | L39: 67,392.65 | M39: 267,871.50 | N39: 25.00% | O39: 67,392.65
A40: 1994-01-01 | B40: 0.00% | C40: 0 | D40: 187,770.00 | E40: 15.00% | F40: 28,165.50 | G40: 366,151.50 | H40: 26.60% | I40: 70,674.75 | J40: 3,379,860.00 | K40: 35.00% | L40: 354,556.70 | M40: 3,379,860.00 | N40: 35.00% | O40: 354,556.70
A41: 1994-02-01 | B41: 0.00% | C41: 0 | D41: 261,320.00 | E41: 15.00% | F41: 39,198.00 | G41: 509,574.00 | H41: 26.60% | I41: 98,358.23 | J41: 4,703,760.00 | K41: 35.00% | L41: 493,437.49 | M41: 4,703,760.00 | N41: 35.00% | O41: 493,437.49
A42: 1994-03-01 | B42: 0.00% | C42: 0 | D42: 365,060.00 | E42: 15.00% | F42: 54,759.00 | G42: 711,867.00 | H42: 26.60% | I42: 137,404.94 | J42: 6,571,080.00 | K42: 35.00% | L42: 689,324.55 | M42: 6,571,080.00 | N42: 35.00% | O42: 689,324.55
A43: 1994-04-01 | B43: 0.00% | C43: 0 | D43: 524,340.00 | E43: 15.00% | F43: 78,651.00 | G43: 1,022,463.00 | H43: 26.60% | I43: 197,356.33 | J43: 9,438,120.00 | K43: 35.00% | L43: 990,085.01 | M43: 9,438,120.00 | N43: 35.00% | O43: 990,085.01
A44: 1994-05-01 | B44: 0.00% | C44: 0 | D44: 740,630.00 | E44: 15.00% | F44: 111,094.50 | G44: 1,444,228.50 | H44: 26.60% | I44: 278,765.73 | J44: 13,331,340.00 | K44: 35.00% | L44: 1,398,493.60 | M44: 13,331,340.00 | N44: 35.00% | O44: 1,398,493.60
A45: 1994-06-01 | B45: 0.00% | C45: 0 | D45: 1,068,060.00 | E45: 15.00% | F45: 160,209.00 | G45: 2,082,717.00 | H45: 26.60% | I45: 402,007.10 | J45: 19,225,080.00 | K45: 35.00% | L45: 2,016,764.30 | M45: 19,225,080.00 | N45: 35.00% | O45: 2,016,764.30
A46: 1994-07-01 | B46: 0.00% | C46: 0 | D46: 561.80 | E46: 15.00% | F46: 84.27 | G46: 1,095.51 | H46: 26.60% | I46: 211.46 | J46: 10,112.40 | K46: 35.00% | L46: 1,060.82 | M46: 10,112.40 | N46: 35.00% | O46: 1,060.82 | P46: 22.47
A47: 1994-08-01 | B47: 0.00% | C47: 0 | D47: 591.10 | E47: 15.00% | F47: 88.66 | G47: 1,152.65 | H47: 26.60% | I47: 222.49 | J47: 10,639.80 | K47: 35.00% | L47: 1,116.14 | M47: 10,639.80 | N47: 35.00% | O47: 1,116.14 | P47: 23.64
A48: 1994-09-01 | B48: 0.00% | C48: 0 | D48: 620.71 | E48: 15.00% | F48: 93.10 | G48: 1,210.36 | H48: 26.60% | I48: 233.63 | J48: 11,172.60 | K48: 35.00% | L48: 1,172.04 | M48: 11,172.60 | N48: 35.00% | O48: 1,172.04 | P48: 62.07
A49: 1994-10-01 | B49: 0.00% | C49: 0 | D49: 630.80 | E49: 15.00% | F49: 94.62 | G49: 1,230.06 | H49: 26.60% | I49: 237.43 | J49: 11,354.40 | K49: 35.00% | L49: 1,191.11 | M49: 11,354.40 | N49: 35.00% | O49: 1,191.11 | P49: 63.08
A50: 1994-11-01 | B50: 0.00% | C50: 0 | D50: 642.80 | E50: 15.00% | F50: 96.42 | G50: 1,253.47 | H50: 26.60% | I50: 241.94 | J50: 11,570.40 | K50: 35.00% | L50: 1,213.77 | M50: 11,570.40 | N50: 35.00% | O50: 1,213.77 | P50: 64.28
A51: 1994-12-01 | B51: 0.00% | C51: 0 | D51: 661.80 | E51: 15.00% | F51: 99.27 | G51: 1,290.51 | H51: 26.60% | I51: 249.09 | J51: 11,912.40 | K51: 35.00% | L51: 1,249.64 | M51: 11,912.40 | N51: 35.00% | O51: 1,249.64 | P51: 66.18
A52: 1995-01-01 | B52: 0.00% | C52: 0 | D52: 676.70 | E52: 15.00% | F52: 101.51 | G52: 1,319.57 | H52: 26.60% | I52: 254.70 | J52: 12,180.60 | K52: 35.00% | L52: 1,277.78 | M52: 12,180.60 | N52: 35.00% | O52: 1,277.78 | P52: 67.67
A53: 1995-02-01 | B53: 0.00% | C53: 0 | D53: 676.70 | E53: 15.00% | F53: 101.51 | G53: 1,319.57 | H53: 26.60% | I53: 254.70 | J53: 12,180.60 | K53: 35.00% | L53: 1,277.78 | M53: 12,180.60 | N53: 35.00% | O53: 1,277.78 | P53: 67.67
A54: 1995-03-01 | B54: 0.00% | C54: 0 | D54: 676.70 | E54: 15.00% | F54: 101.51 | G54: 1,319.57 | H54: 26.60% | I54: 254.70 | J54: 12,180.60 | K54: 35.00% | L54: 1,277.78 | M54: 12,180.60 | N54: 35.00% | O54: 1,277.78 | P54: 67.67
A55: 1995-04-01 | B55: 0.00% | C55: 0 | D55: 706.00 | E55: 15.00% | F55: 105.91 | G55: 1,376.84 | H55: 26.60% | I55: 265.76 | J55: 12,709.24 | K55: 35.00% | L55: 1,333.23 | M55: 12,709.24 | N55: 35.00% | O55: 1,333.23 | P55: 70.61
A56: 1995-05-01 | B56: 0.00% | C56: 0 | D56: 706.00 | E56: 15.00% | F56: 105.91 | G56: 1,376.84 | H56: 26.60% | I56: 265.76 | J56: 12,709.24 | K56: 35.00% | L56: 1,333.23 | M56: 12,709.24 | N56: 35.00% | O56: 1,333.23 | P56: 70.61
A57: 1995-06-01 | B57: 0.00% | C57: 0 | D57: 706.00 | E57: 15.00% | F57: 105.91 | G57: 1,376.84 | H57: 26.60% | I57: 265.76 | J57: 12,709.24 | K57: 35.00% | L57: 1,333.23 | M57: 12,709.24 | N57: 35.00% | O57: 1,333.23 | P57: 70.61
A58: 1995-07-01 | B58: 0.00% | C58: 0 | D58: 756.44 | E58: 15.00% | F58: 113.47 | G58: 1,475.01 | H58: 26.60% | I58: 284.71 | J58: 13,615.41 | K58: 35.00% | L58: 1,428.29 | M58: 13,615.41 | N58: 35.00% | O58: 1,428.29 | P58: 75.64
A59: 1995-08-01 | B59: 0.00% | C59: 0 | D59: 756.44 | E59: 15.00% | F59: 113.47 | G59: 1,475.01 | H59: 26.60% | I59: 284.71 | J59: 13,615.41 | K59: 35.00% | L59: 1,428.29 | M59: 13,615.41 | N59: 35.00% | O59: 1,428.29 | P59: 75.64
A60: 1995-09-01 | B60: 0.00% | C60: 0 | D60: 756.44 | E60: 15.00% | F60: 113.47 | G60: 1,475.01 | H60: 26.60% | I60: 284.71 | J60: 13,615.41 | K60: 35.00% | L60: 1,428.29 | M60: 13,615.41 | N60: 35.00% | O60: 1,428.29 | P60: 75.64
A61: 1995-10-01 | B61: 0.00% | C61: 0 | D61: 795.24 | E61: 15.00% | F61: 119.29 | G61: 1,550.68 | H61: 26.60% | I61: 299.32 | J61: 14,313.88 | K61: 35.00% | L61: 1,501.57 | M61: 14,313.88 | N61: 35.00% | O61: 1,501.57 | P61: 79.52
A62: 1995-11-01 | B62: 0.00% | C62: 0 | D62: 795.24 | E62: 15.00% | F62: 119.29 | G62: 1,550.68 | H62: 26.60% | I62: 299.32 | J62: 14,313.88 | K62: 35.00% | L62: 1,501.57 | M62: 14,313.88 | N62: 35.00% | O62: 1,501.57 | P62: 79.52
A63: 1995-12-01 | B63: 0.00% | C63: 0 | D63: 795.24 | E63: 15.00% | F63: 119.29 | G63: 1,550.68 | H63: 26.60% | I63: 299.32 | J63: 14,313.88 | K63: 35.00% | L63: 1,501.57 | M63: 14,313.88 | N63: 35.00% | O63: 1,501.57 | P63: 79.52
A64: 1996-01-01 | B64: 0.00% | C64: 0 | D64: 900.00 | E64: 15.00% | F64: 135.00 | G64: 1,800.00 | H64: 25.00% | I64: 315.00 | J64: 1,800.00 | K64: 25.00% | L64: 315.00 | M64: 1,800.00 | N64: 25.00% | O64: 315.00 | P64: 90.00
A65: 1996-02-01 | B65: 0.00% | C65: 0 | D65: 900.00 | E65: 15.00% | F65: 135.00 | G65: 1,800.00 | H65: 25.00% | I65: 315.00 | J65: 1,800.00 | K65: 25.00% | L65: 315.00 | M65: 1,800.00 | N65: 25.00% | O65: 315.00 | P65: 90.00
A66: 1996-03-01 | B66: 0.00% | C66: 0 | D66: 900.00 | E66: 15.00% | F66: 135.00 | G66: 1,800.00 | H66: 25.00% | I66: 315.00 | J66: 1,800.00 | K66: 25.00% | L66: 315.00 | M66: 1,800.00 | N66: 25.00% | O66: 315.00 | P66: 90.00
A67: 1996-04-01 | B67: 0.00% | C67: 0 | D67: 900.00 | E67: 15.00% | F67: 135.00 | G67: 1,800.00 | H67: 25.00% | I67: 315.00 | J67: 1,800.00 | K67: 25.00% | L67: 315.00 | M67: 1,800.00 | N67: 25.00% | O67: 315.00 | P67: 90.00
A68: 1996-05-01 | B68: 0.00% | C68: 0 | D68: 900.00 | E68: 15.00% | F68: 135.00 | G68: 1,800.00 | H68: 25.00% | I68: 315.00 | J68: 1,800.00 | K68: 25.00% | L68: 315.00 | M68: 1,800.00 | N68: 25.00% | O68: 315.00 | P68: 90.00
A69: 1996-06-01 | B69: 0.00% | C69: 0 | D69: 900.00 | E69: 15.00% | F69: 135.00 | G69: 1,800.00 | H69: 25.00% | I69: 315.00 | J69: 1,800.00 | K69: 25.00% | L69: 315.00 | M69: 1,800.00 | N69: 25.00% | O69: 315.00 | P69: 90.00
A70: 1996-07-01 | B70: 0.00% | C70: 0 | D70: 900.00 | E70: 15.00% | F70: 135.00 | G70: 1,800.00 | H70: 25.00% | I70: 315.00 | J70: 1,800.00 | K70: 25.00% | L70: 315.00 | M70: =J70 -> 1,800.00 | N70: 25.00% | O70: 315.00 | P70: 90.00
A71: 1996-08-01 | B71: 0.00% | C71: 0 | D71: 900.00 | E71: 15.00% | F71: 135.00 | G71: 1,800.00 | H71: 25.00% | I71: 315.00 | J71: 1,800.00 | K71: 25.00% | L71: 315.00 | M71: 1,800.00 | N71: 25.00% | O71: 315.00 | P71: 90.00
A72: 1996-09-01 | B72: 0.00% | C72: 0 | D72: 900.00 | E72: 15.00% | F72: 135.00 | G72: 1,800.00 | H72: 25.00% | I72: 315.00 | J72: 1,800.00 | K72: 25.00% | L72: 315.00 | M72: 1,800.00 | N72: 25.00% | O72: 315.00 | P72: 90.00
A73: 1996-10-01 | B73: 0.00% | C73: 0 | D73: 900.00 | E73: 15.00% | F73: 135.00 | G73: 1,800.00 | H73: 25.00% | I73: 315.00 | J73: 1,800.00 | K73: 25.00% | L73: 315.00 | M73: 1,800.00 | N73: 25.00% | O73: 315.00 | P73: 90.00
A74: 1996-11-01 | B74: 0.00% | C74: 0 | D74: 900.00 | E74: 15.00% | F74: 135.00 | G74: 1,800.00 | H74: 25.00% | I74: 315.00 | J74: 1,800.00 | K74: 25.00% | L74: 315.00 | M74: 1,800.00 | N74: 25.00% | O74: 315.00 | P74: 90.00
A75: 1996-12-01 | B75: 0.00% | C75: 0 | D75: 900.00 | E75: 15.00% | F75: 135.00 | G75: 1,800.00 | H75: 25.00% | I75: 315.00 | J75: 1,800.00 | K75: 25.00% | L75: 315.00 | M75: 1,800.00 | N75: 25.00% | O75: 315.00 | P75: 90.00
A76: 1997-01-01 | B76: 0.00% | C76: 0 | D76: 900.00 | E76: 15.00% | F76: 135.00 | G76: 1,800.00 | H76: 25.00% | I76: 315.00 | J76: 1,800.00 | K76: 25.00% | L76: 315.00 | M76: 1,800.00 | N76: 25.00% | O76: 315.00 | P76: 90.00
A77: 1997-02-01 | B77: 0.00% | C77: 0 | D77: 900.00 | E77: 15.00% | F77: 135.00 | G77: 1,800.00 | H77: 25.00% | I77: 315.00 | J77: 1,800.00 | K77: 25.00% | L77: 315.00 | M77: 1,800.00 | N77: 25.00% | O77: 315.00 | P77: 90.00
A78: 1997-03-01 | B78: 0.00% | C78: 0 | D78: 900.00 | E78: 15.00% | F78: 135.00 | G78: 1,800.00 | H78: 25.00% | I78: 315.00 | J78: 1,800.00 | K78: 25.00% | L78: 315.00 | M78: 1,800.00 | N78: 25.00% | O78: 315.00 | P78: 90.00
A79: 1997-04-01 | B79: 0.00% | C79: 0 | D79: 900.00 | E79: 15.00% | F79: 135.00 | G79: 1,800.00 | H79: 25.00% | I79: 315.00 | J79: 1,800.00 | K79: 25.00% | L79: 315.00 | M79: 1,800.00 | N79: 25.00% | O79: 315.00 | P79: 90.00
A80: 1997-05-01 | B80: 0.00% | C80: 0 | D80: 900.00 | E80: 15.00% | F80: 135.00 | G80: 1,800.00 | H80: 25.00% | I80: 315.00 | J80: 1,800.00 | K80: 25.00% | L80: 315.00 | M80: 1,800.00 | N80: 25.00% | O80: 315.00 | P80: 90.00
A81: 1997-06-01 | B81: 0.00% | C81: 0 | D81: 900.00 | E81: 15.00% | F81: 135.00 | G81: 1,800.00 | H81: 25.00% | I81: 315.00 | J81: 1,800.00 | K81: 25.00% | L81: 315.00 | M81: 1,800.00 | N81: 25.00% | O81: 315.00 | P81: 90.00
A82: 1997-07-01 | B82: 0.00% | C82: 0 | D82: 900.00 | E82: 15.00% | F82: 135.00 | G82: 1,800.00 | H82: 25.00% | I82: 315.00 | J82: 1,800.00 | K82: 25.00% | L82: 315.00 | M82: 1,800.00 | N82: 25.00% | O82: 315.00 | P82: 90.00
A83: 1997-08-01 | B83: 0.00% | C83: 0 | D83: 900.00 | E83: 15.00% | F83: 135.00 | G83: 1,800.00 | H83: 25.00% | I83: 315.00 | J83: 1,800.00 | K83: 25.00% | L83: 315.00 | M83: 1,800.00 | N83: 25.00% | O83: 315.00 | P83: 90.00
A84: 1997-09-01 | B84: 0.00% | C84: 0 | D84: 900.00 | E84: 15.00% | F84: 135.00 | G84: 1,800.00 | H84: 25.00% | I84: 315.00 | J84: 1,800.00 | K84: 25.00% | L84: 315.00 | M84: 1,800.00 | N84: 25.00% | O84: 315.00 | P84: 90.00
A85: 1997-10-01 | B85: 0.00% | C85: 0 | D85: 900.00 | E85: 15.00% | F85: 135.00 | G85: 1,800.00 | H85: 25.00% | I85: 315.00 | J85: 1,800.00 | K85: 25.00% | L85: 315.00 | M85: 1,800.00 | N85: 25.00% | O85: 315.00 | P85: 90.00
A86: 1997-11-01 | B86: 0.00% | C86: 0 | D86: 900.00 | E86: 15.00% | F86: 135.00 | G86: 1,800.00 | H86: 25.00% | I86: 315.00 | J86: 1,800.00 | K86: 25.00% | L86: 315.00 | M86: 1,800.00 | N86: 25.00% | O86: 315.00 | P86: 90.00
A87: 1997-12-01 | B87: 0.00% | C87: 0 | D87: 900.00 | E87: 15.00% | F87: 135.00 | G87: 1,800.00 | H87: 25.00% | I87: 315.00 | J87: 1,800.00 | K87: 25.00% | L87: 315.00 | M87: 1,800.00 | N87: 25.00% | O87: 315.00 | P87: 90.00
A88: 1998-01-01 | B88: 0.00% | C88: 0 | D88: 900.00 | E88: 15.00% | F88: 135.00 | G88: 1,800.00 | H88: 27.50% | I88: 360.00 | J88: 1,800.00 | K88: 27.50% | L88: 360.00 | M88: 1,800.00 | N88: 27.50% | O88: 360.00 | P88: 90.00
A89: 1998-02-01 | B89: 0.00% | C89: 0 | D89: 900.00 | E89: 15.00% | F89: 135.00 | G89: 1,800.00 | H89: 27.50% | I89: 360.00 | J89: 1,800.00 | K89: 27.50% | L89: 360.00 | M89: 1,800.00 | N89: 27.50% | O89: 360.00 | P89: 90.00
A90: 1998-03-01 | B90: 0.00% | C90: 0 | D90: 900.00 | E90: 15.00% | F90: 135.00 | G90: 1,800.00 | H90: 27.50% | I90: 360.00 | J90: 1,800.00 | K90: 27.50% | L90: 360.00 | M90: 1,800.00 | N90: 27.50% | O90: 360.00 | P90: 90.00
A91: 1998-04-01 | B91: 0.00% | C91: 0 | D91: 900.00 | E91: 15.00% | F91: 135.00 | G91: 1,800.00 | H91: 27.50% | I91: 360.00 | J91: 1,800.00 | K91: 27.50% | L91: 360.00 | M91: 1,800.00 | N91: 27.50% | O91: 360.00 | P91: 90.00
A92: 1998-05-01 | B92: 0.00% | C92: 0 | D92: 900.00 | E92: 15.00% | F92: 135.00 | G92: 1,800.00 | H92: 27.50% | I92: 360.00 | J92: 1,800.00 | K92: 27.50% | L92: 360.00 | M92: 1,800.00 | N92: 27.50% | O92: 360.00 | P92: 90.00
A93: 1998-06-01 | B93: 0.00% | C93: 0 | D93: 900.00 | E93: 15.00% | F93: 135.00 | G93: 1,800.00 | H93: 27.50% | I93: 360.00 | J93: 1,800.00 | K93: 27.50% | L93: 360.00 | M93: 1,800.00 | N93: 27.50% | O93: 360.00 | P93: 90.00
A94: 1998-07-01 | B94: 0.00% | C94: 0 | D94: 900.00 | E94: 15.00% | F94: 135.00 | G94: 1,800.00 | H94: 27.50% | I94: 360.00 | J94: 1,800.00 | K94: 27.50% | L94: 360.00 | M94: 1,800.00 | N94: 27.50% | O94: 360.00 | P94: 90.00
A95: 1998-08-01 | B95: 0.00% | C95: 0 | D95: 900.00 | E95: 15.00% | F95: 135.00 | G95: 1,800.00 | H95: 27.50% | I95: 360.00 | J95: 1,800.00 | K95: 27.50% | L95: 360.00 | M95: 1,800.00 | N95: 27.50% | O95: 360.00 | P95: 90.00
A96: 1998-09-01 | B96: 0.00% | C96: 0 | D96: 900.00 | E96: 15.00% | F96: 135.00 | G96: 1,800.00 | H96: 27.50% | I96: 360.00 | J96: 1,800.00 | K96: 27.50% | L96: 360.00 | M96: 1,800.00 | N96: 27.50% | O96: 360.00 | P96: 90.00
A97: 1998-10-01 | B97: 0.00% | C97: 0 | D97: 900.00 | E97: 15.00% | F97: 135.00 | G97: 1,800.00 | H97: 27.50% | I97: 360.00 | J97: 1,800.00 | K97: 27.50% | L97: 360.00 | M97: 1,800.00 | N97: 27.50% | O97: 360.00 | P97: 90.00
A98: 1998-11-01 | B98: 0.00% | C98: 0 | D98: 900.00 | E98: 15.00% | F98: 135.00 | G98: 1,800.00 | H98: 27.50% | I98: 360.00 | J98: 1,800.00 | K98: 27.50% | L98: 360.00 | M98: 1,800.00 | N98: 27.50% | O98: 360.00 | P98: 90.00
A99: 1998-12-01 | B99: 0.00% | C99: 0 | D99: 900.00 | E99: 15.00% | F99: 135.00 | G99: 1,800.00 | H99: 27.50% | I99: 360.00 | J99: 1,800.00 | K99: 27.50% | L99: 360.00 | M99: 1,800.00 | N99: 27.50% | O99: 360.00 | P99: 90.00
A100: 1999-01-01 | B100: 0.00% | C100: 0 | D100: 900.00 | E100: 15.00% | F100: 135.00 | G100: 1,800.00 | H100: 27.50% | I100: 360.00 | J100: 1,800.00 | K100: 27.50% | L100: 360.00 | M100: 1,800.00 | N100: 27.50% | O100: 360.00 | P100: 90.00
A101: 1999-02-01 | B101: 0.00% | C101: 0 | D101: 900.00 | E101: 15.00% | F101: 135.00 | G101: 1,800.00 | H101: 27.50% | I101: 360.00 | J101: 1,800.00 | K101: 27.50% | L101: 360.00 | M101: 1,800.00 | N101: 27.50% | O101: 360.00 | P101: 90.00
A102: 1999-03-01 | B102: 0.00% | C102: 0 | D102: 900.00 | E102: 15.00% | F102: 135.00 | G102: 1,800.00 | H102: 27.50% | I102: 360.00 | J102: 1,800.00 | K102: 27.50% | L102: 360.00 | M102: 1,800.00 | N102: 27.50% | O102: 360.00 | P102: 90.00
A103: 1999-04-01 | B103: 0.00% | C103: 0 | D103: 900.00 | E103: 15.00% | F103: 135.00 | G103: 1,800.00 | H103: 27.50% | I103: 360.00 | J103: 1,800.00 | K103: 27.50% | L103: 360.00 | M103: 1,800.00 | N103: 27.50% | O103: 360.00 | P103: 90.00
A104: 1999-05-01 | B104: 0.00% | C104: 0 | D104: 900.00 | E104: 15.00% | F104: 135.00 | G104: 1,800.00 | H104: 27.50% | I104: 360.00 | J104: 1,800.00 | K104: 27.50% | L104: 360.00 | M104: 1,800.00 | N104: 27.50% | O104: 360.00 | P104: 90.00
A105: 1999-06-01 | B105: 0.00% | C105: 0 | D105: 900.00 | E105: 15.00% | F105: 135.00 | G105: 1,800.00 | H105: 27.50% | I105: 360.00 | J105: 1,800.00 | K105: 27.50% | L105: 360.00 | M105: 1,800.00 | N105: 27.50% | O105: 360.00 | P105: 90.00
A106: 1999-07-01 | B106: 0.00% | C106: 0 | D106: 900.00 | E106: 15.00% | F106: 135.00 | G106: 1,800.00 | H106: 27.50% | I106: 360.00 | J106: 1,800.00 | K106: 27.50% | L106: 360.00 | M106: 1,800.00 | N106: 27.50% | O106: 360.00 | P106: 90.00
A107: 1999-08-01 | B107: 0.00% | C107: 0 | D107: 900.00 | E107: 15.00% | F107: 135.00 | G107: 1,800.00 | H107: 27.50% | I107: 360.00 | J107: 1,800.00 | K107: 27.50% | L107: 360.00 | M107: 1,800.00 | N107: 27.50% | O107: 360.00 | P107: 90.00
A108: 1999-09-01 | B108: 0.00% | C108: 0 | D108: 900.00 | E108: 15.00% | F108: 135.00 | G108: 1,800.00 | H108: 27.50% | I108: 360.00 | J108: 1,800.00 | K108: 27.50% | L108: 360.00 | M108: 1,800.00 | N108: 27.50% | O108: 360.00 | P108: 90.00
A109: 1999-10-01 | B109: 0.00% | C109: 0 | D109: 900.00 | E109: 15.00% | F109: 135.00 | G109: 1,800.00 | H109: 27.50% | I109: 360.00 | J109: 1,800.00 | K109: 27.50% | L109: 360.00 | M109: 1,800.00 | N109: 27.50% | O109: 360.00 | P109: 90.00
A110: 1999-11-01 | B110: 0.00% | C110: 0 | D110: 900.00 | E110: 15.00% | F110: 135.00 | G110: 1,800.00 | H110: 27.50% | I110: 360.00 | J110: 1,800.00 | K110: 27.50% | L110: 360.00 | M110: 1,800.00 | N110: 27.50% | O110: 360.00 | P110: 90.00
A111: 1999-12-01 | B111: 0.00% | C111: 0 | D111: 900.00 | E111: 15.00% | F111: 135.00 | G111: 1,800.00 | H111: 27.50% | I111: 360.00 | J111: 1,800.00 | K111: 27.50% | L111: 360.00 | M111: 1,800.00 | N111: 27.50% | O111: 360.00 | P111: 90.00
A112: 2000-01-01 | B112: 0.00% | C112: 0 | D112: 900.00 | E112: 15.00% | F112: 135.00 | G112: 1,800.00 | H112: 27.50% | I112: 360.00 | J112: 1,800.00 | K112: 27.50% | L112: 360.00 | M112: 1,800.00 | N112: 27.50% | O112: 360.00 | P112: 90.00
A113: 2000-02-01 | B113: 0.00% | C113: 0 | D113: 900.00 | E113: 15.00% | F113: 135.00 | G113: 1,800.00 | H113: 27.50% | I113: 360.00 | J113: 1,800.00 | K113: 27.50% | L113: 360.00 | M113: 1,800.00 | N113: 27.50% | O113: 360.00 | P113: 90.00
A114: 2000-03-01 | B114: 0.00% | C114: 0 | D114: 900.00 | E114: 15.00% | F114: 135.00 | G114: 1,800.00 | H114: 27.50% | I114: 360.00 | J114: 1,800.00 | K114: 27.50% | L114: 360.00 | M114: 1,800.00 | N114: 27.50% | O114: 360.00 | P114: 90.00
A115: 2000-04-01 | B115: 0.00% | C115: 0 | D115: 900.00 | E115: 15.00% | F115: 135.00 | G115: 1,800.00 | H115: 27.50% | I115: 360.00 | J115: 1,800.00 | K115: 27.50% | L115: 360.00 | M115: 1,800.00 | N115: 27.50% | O115: 360.00 | P115: 90.00
A116: 2000-05-01 | B116: 0.00% | C116: 0 | D116: 900.00 | E116: 15.00% | F116: 135.00 | G116: 1,800.00 | H116: 27.50% | I116: 360.00 | J116: 1,800.00 | K116: 27.50% | L116: 360.00 | M116: 1,800.00 | N116: 27.50% | O116: 360.00 | P116: 90.00
A117: 2000-06-01 | B117: 0.00% | C117: 0 | D117: 900.00 | E117: 15.00% | F117: 135.00 | G117: 1,800.00 | H117: 27.50% | I117: 360.00 | J117: 1,800.00 | K117: 27.50% | L117: 360.00 | M117: 1,800.00 | N117: 27.50% | O117: 360.00 | P117: 90.00
A118: 2000-07-01 | B118: 0.00% | C118: 0 | D118: 900.00 | E118: 15.00% | F118: 135.00 | G118: 1,800.00 | H118: 27.50% | I118: 360.00 | J118: 1,800.00 | K118: 27.50% | L118: 360.00 | M118: 1,800.00 | N118: 27.50% | O118: 360.00 | P118: 90.00
A119: 2000-08-01 | B119: 0.00% | C119: 0 | D119: 900.00 | E119: 15.00% | F119: 135.00 | G119: 1,800.00 | H119: 27.50% | I119: 360.00 | J119: 1,800.00 | K119: 27.50% | L119: 360.00 | M119: 1,800.00 | N119: 27.50% | O119: 360.00 | P119: 90.00
A120: 2000-09-01 | B120: 0.00% | C120: 0 | D120: 900.00 | E120: 15.00% | F120: 135.00 | G120: 1,800.00 | H120: 27.50% | I120: 360.00 | J120: 1,800.00 | K120: 27.50% | L120: 360.00 | M120: 1,800.00 | N120: 27.50% | O120: 360.00 | P120: 90.00
A121: 2000-10-01 | B121: 0.00% | C121: 0 | D121: 900.00 | E121: 15.00% | F121: 135.00 | G121: 1,800.00 | H121: 27.50% | I121: 360.00 | J121: 1,800.00 | K121: 27.50% | L121: 360.00 | M121: 1,800.00 | N121: 27.50% | O121: 360.00 | P121: 90.00
A122: 2000-11-01 | B122: 0.00% | C122: 0 | D122: 900.00 | E122: 15.00% | F122: 135.00 | G122: 1,800.00 | H122: 27.50% | I122: 360.00 | J122: 1,800.00 | K122: 27.50% | L122: 360.00 | M122: 1,800.00 | N122: 27.50% | O122: 360.00 | P122: 90.00
A123: 2000-12-01 | B123: 0.00% | C123: 0 | D123: 900.00 | E123: 15.00% | F123: 135.00 | G123: 1,800.00 | H123: 27.50% | I123: 360.00 | J123: 1,800.00 | K123: 27.50% | L123: 360.00 | M123: 1,800.00 | N123: 27.50% | O123: 360.00 | P123: 90.00
A124: 2001-01-01 | B124: 0.00% | C124: 0 | D124: 900.00 | E124: 15.00% | F124: 135.00 | G124: 1,800.00 | H124: 27.50% | I124: 360.00 | J124: 1,800.00 | K124: 27.50% | L124: 360.00 | M124: 1,800.00 | N124: 27.50% | O124: 360.00 | P124: 90.00
A125: 2001-02-01 | B125: 0.00% | C125: 0 | D125: 900.00 | E125: 15.00% | F125: 135.00 | G125: 1,800.00 | H125: 27.50% | I125: 360.00 | J125: 1,800.00 | K125: 27.50% | L125: 360.00 | M125: 1,800.00 | N125: 27.50% | O125: 360.00 | P125: 90.00
A126: 2001-03-01 | B126: 0.00% | C126: 0 | D126: 900.00 | E126: 15.00% | F126: 135.00 | G126: 1,800.00 | H126: 27.50% | I126: 360.00 | J126: 1,800.00 | K126: 27.50% | L126: 360.00 | M126: 1,800.00 | N126: 27.50% | O126: 360.00 | P126: 90.00
A127: 2001-04-01 | B127: 0.00% | C127: 0 | D127: 900.00 | E127: 15.00% | F127: 135.00 | G127: 1,800.00 | H127: 27.50% | I127: 360.00 | J127: 1,800.00 | K127: 27.50% | L127: 360.00 | M127: 1,800.00 | N127: 27.50% | O127: 360.00 | P127: 90.00
A128: 2001-05-01 | B128: 0.00% | C128: 0 | D128: 900.00 | E128: 15.00% | F128: 135.00 | G128: 1,800.00 | H128: 27.50% | I128: 360.00 | J128: 1,800.00 | K128: 27.50% | L128: 360.00 | M128: 1,800.00 | N128: 27.50% | O128: 360.00 | P128: 90.00
A129: 2001-06-01 | B129: 0.00% | C129: 0 | D129: 900.00 | E129: 15.00% | F129: 135.00 | G129: 1,800.00 | H129: 27.50% | I129: 360.00 | J129: 1,800.00 | K129: 27.50% | L129: 360.00 | M129: 1,800.00 | N129: 27.50% | O129: 360.00 | P129: 90.00
A130: 2001-07-01 | B130: 0.00% | C130: 0 | D130: 900.00 | E130: 15.00% | F130: 135.00 | G130: 1,800.00 | H130: 27.50% | I130: 360.00 | J130: 1,800.00 | K130: 27.50% | L130: 360.00 | M130: 1,800.00 | N130: 27.50% | O130: 360.00 | P130: 90.00
A131: 2001-08-01 | B131: 0.00% | C131: 0 | D131: 900.00 | E131: 15.00% | F131: 135.00 | G131: 1,800.00 | H131: 27.50% | I131: 360.00 | J131: 1,800.00 | K131: 27.50% | L131: 360.00 | M131: 1,800.00 | N131: 27.50% | O131: 360.00 | P131: 90.00
A132: 2001-09-01 | B132: 0.00% | C132: 0 | D132: 900.00 | E132: 15.00% | F132: 135.00 | G132: 1,800.00 | H132: 27.50% | I132: 360.00 | J132: 1,800.00 | K132: 27.50% | L132: 360.00 | M132: 1,800.00 | N132: 27.50% | O132: 360.00 | P132: 90.00
A133: 2001-10-01 | B133: 0.00% | C133: 0 | D133: 900.00 | E133: 15.00% | F133: 135.00 | G133: 1,800.00 | H133: 27.50% | I133: 360.00 | J133: 1,800.00 | K133: 27.50% | L133: 360.00 | M133: 1,800.00 | N133: 27.50% | O133: 360.00 | P133: 90.00
A134: 2001-11-01 | B134: 0.00% | C134: 0 | D134: 900.00 | E134: 15.00% | F134: 135.00 | G134: 1,800.00 | H134: 27.50% | I134: 360.00 | J134: 1,800.00 | K134: 27.50% | L134: 360.00 | M134: =J134 -> 1,800.00 | N134: 27.50% | O134: 360.00 | P134: 90.00
A135: 2001-12-01 | B135: 0.00% | C135: 0 | D135: 900.00 | E135: 15.00% | F135: 135.00 | G135: 1,800.00 | H135: 27.50% | I135: 360.00 | J135: 1,800.00 | K135: 27.50% | L135: 360.00 | M135: 1,800.00 | N135: 27.50% | O135: 360.00 | P135: 90.00
A136: 2002-01-01 | B136: 0.00% | C136: 0 | D136: 900.00 | E136: 15.00% | F136: 135.00 | G136: 1,800.00 | H136: 27.50% | I136: 360.00 | J136: 1,800.00 | K136: 27.50% | L136: 360.00 | M136: 1,800.00 | N136: 27.50% | O136: 360.00 | P136: 106.00
A137: 2002-02-01 | B137: 0.00% | C137: 0 | D137: 900.00 | E137: 15.00% | F137: 135.00 | G137: 1,800.00 | H137: 27.50% | I137: 360.00 | J137: 1,800.00 | K137: 27.50% | L137: 360.00 | M137: 1,800.00 | N137: 27.50% | O137: 360.00 | P137: 106.00
A138: 2002-03-01 | B138: 0.00% | C138: 0 | D138: 900.00 | E138: 15.00% | F138: 135.00 | G138: 1,800.00 | H138: 27.50% | I138: 360.00 | J138: 1,800.00 | K138: 27.50% | L138: 360.00 | M138: 1,800.00 | N138: 27.50% | O138: 360.00 | P138: 106.00
A139: 2002-04-01 | B139: 0.00% | C139: 0 | D139: 900.00 | E139: 15.00% | F139: 135.00 | G139: 1,800.00 | H139: 27.50% | I139: 360.00 | J139: 1,800.00 | K139: 27.50% | L139: 360.00 | M139: 1,800.00 | N139: 27.50% | O139: 360.00 | P139: 106.00
A140: 2002-05-01 | B140: 0.00% | C140: 0 | D140: 900.00 | E140: 15.00% | F140: 135.00 | G140: 1,800.00 | H140: 27.50% | I140: 360.00 | J140: 1,800.00 | K140: 27.50% | L140: 360.00 | M140: 1,800.00 | N140: 27.50% | O140: 360.00 | P140: 106.00
A141: 2002-06-01 | B141: 0.00% | C141: 0 | D141: 900.00 | E141: 15.00% | F141: 135.00 | G141: 1,800.00 | H141: 27.50% | I141: 360.00 | J141: 1,800.00 | K141: 27.50% | L141: 360.00 | M141: 1,800.00 | N141: 27.50% | O141: 360.00 | P141: 106.00
A142: 2002-07-01 | B142: 0.00% | C142: 0 | D142: 900.00 | E142: 15.00% | F142: 135.00 | G142: 1,800.00 | H142: 27.50% | I142: 360.00 | J142: 1,800.00 | K142: 27.50% | L142: 360.00 | M142: 1,800.00 | N142: 27.50% | O142: 360.00 | P142: 106.00
A143: 2002-08-01 | B143: 0.00% | C143: 0 | D143: 900.00 | E143: 15.00% | F143: 135.00 | G143: 1,800.00 | H143: 27.50% | I143: 360.00 | J143: 1,800.00 | K143: 27.50% | L143: 360.00 | M143: 1,800.00 | N143: 27.50% | O143: 360.00 | P143: 106.00
A144: 2002-09-01 | B144: 0.00% | C144: 0 | D144: 900.00 | E144: 15.00% | F144: 135.00 | G144: 1,800.00 | H144: 27.50% | I144: 360.00 | J144: 1,800.00 | K144: 27.50% | L144: 360.00 | M144: 1,800.00 | N144: 27.50% | O144: 360.00 | P144: 106.00
A145: 2002-10-01 | B145: 0.00% | C145: 0 | D145: 900.00 | E145: 15.00% | F145: 135.00 | G145: 1,800.00 | H145: 27.50% | I145: 360.00 | J145: 1,800.00 | K145: 27.50% | L145: 360.00 | M145: 1,800.00 | N145: 27.50% | O145: 360.00 | P145: 106.00
A146: 2002-11-01 | B146: 0.00% | C146: 0 | D146: 900.00 | E146: 15.00% | F146: 135.00 | G146: 1,800.00 | H146: 27.50% | I146: 360.00 | J146: 1,800.00 | K146: 27.50% | L146: 360.00 | M146: 1,800.00 | N146: 27.50% | O146: 360.00 | P146: 106.00
A147: 2002-12-01 | B147: 0.00% | C147: 0 | D147: 900.00 | E147: 15.00% | F147: 135.00 | G147: 1,800.00 | H147: 27.50% | I147: 360.00 | J147: 1,800.00 | K147: 27.50% | L147: 360.00 | M147: 1,800.00 | N147: 27.50% | O147: 360.00 | P147: 106.00
A148: 2003-01-01 | B148: 0.00% | C148: 0 | D148: 1,058.01 | E148: 15.00% | F148: 158.70 | G148: 2,115.00 | H148: 27.50% | I148: 423.08 | J148: 2,115.00 | K148: 27.50% | L148: 423.08 | M148: 2,115.00 | N148: 27.50% | O148: 423.08 | P148: 106.00
A149: 2003-02-01 | B149: 0.00% | C149: 0 | D149: 1,058.01 | E149: 15.00% | F149: 158.70 | G149: 2,115.00 | H149: 27.50% | I149: 423.08 | J149: 2,115.00 | K149: 27.50% | L149: 423.08 | M149: 2,115.00 | N149: 27.50% | O149: 423.08 | P149: 106.00
A150: 2003-03-01 | B150: 0.00% | C150: 0 | D150: 1,058.01 | E150: 15.00% | F150: 158.70 | G150: 2,115.00 | H150: 27.50% | I150: 423.08 | J150: 2,115.00 | K150: 27.50% | L150: 423.08 | M150: 2,115.00 | N150: 27.50% | O150: 423.08 | P150: 106.00
A151: 2003-04-01 | B151: 0.00% | C151: 0 | D151: 1,058.01 | E151: 15.00% | F151: 158.70 | G151: 2,115.00 | H151: 27.50% | I151: 423.08 | J151: 2,115.00 | K151: 27.50% | L151: 423.08 | M151: 2,115.00 | N151: 27.50% | O151: 423.08 | P151: 106.00
A152: 2003-05-01 | B152: 0.00% | C152: 0 | D152: 1,058.01 | E152: 15.00% | F152: 158.70 | G152: 2,115.00 | H152: 27.50% | I152: 423.08 | J152: 2,115.00 | K152: 27.50% | L152: 423.08 | M152: 2,115.00 | N152: 27.50% | O152: 423.08 | P152: 106.00
A153: 2003-06-01 | B153: 0.00% | C153: 0 | D153: 1,058.01 | E153: 15.00% | F153: 158.70 | G153: 2,115.00 | H153: 27.50% | I153: 423.08 | J153: 2,115.00 | K153: 27.50% | L153: 423.08 | M153: 2,115.00 | N153: 27.50% | O153: 423.08 | P153: 106.00
A154: 2003-07-01 | B154: 0.00% | C154: 0 | D154: 1,058.01 | E154: 15.00% | F154: 158.70 | G154: 2,115.00 | H154: 27.50% | I154: 423.08 | J154: 2,115.00 | K154: 27.50% | L154: 423.08 | M154: 2,115.00 | N154: 27.50% | O154: 423.08 | P154: 106.00
A155: 2003-08-01 | B155: 0.00% | C155: 0 | D155: 1,058.01 | E155: 15.00% | F155: 158.70 | G155: 2,115.00 | H155: 27.50% | I155: 423.08 | J155: 2,115.00 | K155: 27.50% | L155: 423.08 | M155: 2,115.00 | N155: 27.50% | O155: 423.08 | P155: 106.00
A156: 2003-09-01 | B156: 0.00% | C156: 0 | D156: 1,058.01 | E156: 15.00% | F156: 158.70 | G156: 2,115.00 | H156: 27.50% | I156: 423.08 | J156: 2,115.00 | K156: 27.50% | L156: 423.08 | M156: 2,115.00 | N156: 27.50% | O156: 423.08 | P156: 106.00
A157: 2003-10-01 | B157: 0.00% | C157: 0 | D157: 1,058.01 | E157: 15.00% | F157: 158.70 | G157: 2,115.00 | H157: 27.50% | I157: 423.08 | J157: 2,115.00 | K157: 27.50% | L157: 423.08 | M157: 2,115.00 | N157: 27.50% | O157: 423.08 | P157: 106.00
A158: 2003-11-01 | B158: 0.00% | C158: 0 | D158: 1,058.01 | E158: 15.00% | F158: 158.70 | G158: 2,115.00 | H158: 27.50% | I158: 423.08 | J158: 2,115.00 | K158: 27.50% | L158: 423.08 | M158: 2,115.00 | N158: 27.50% | O158: 423.08 | P158: 106.00
A159: 2003-12-01 | B159: 0.00% | C159: 0 | D159: 1,058.01 | E159: 15.00% | F159: 158.70 | G159: 2,115.00 | H159: 27.50% | I159: 423.08 | J159: 2,115.00 | K159: 27.50% | L159: 423.08 | M159: 2,115.00 | N159: 27.50% | O159: 423.08 | P159: 106.00
A160: 2004-01-01 | B160: 0.00% | C160: 0 | D160: 1,058.01 | E160: 15.00% | F160: 158.70 | G160: 2,115.00 | H160: 27.50% | I160: 423.08 | J160: 2,115.00 | K160: 27.50% | L160: 423.08 | M160: 2,115.00 | N160: 27.50% | O160: 423.08 | P160: 106.00
A161: 2004-02-01 | B161: 0.00% | C161: 0 | D161: 1,058.01 | E161: 15.00% | F161: 158.70 | G161: 2,115.00 | H161: 27.50% | I161: 423.08 | J161: 2,115.00 | K161: 27.50% | L161: 423.08 | M161: 2,115.00 | N161: 27.50% | O161: 423.08 | P161: 106.00
A162: 2004-03-01 | B162: 0.00% | C162: 0 | D162: 1,058.01 | E162: 15.00% | F162: 158.70 | G162: 2,115.00 | H162: 27.50% | I162: 423.08 | J162: 2,115.00 | K162: 27.50% | L162: 423.08 | M162: 2,115.00 | N162: 27.50% | O162: 423.08 | P162: 106.00
A163: 2004-04-01 | B163: 0.00% | C163: 0 | D163: 1,058.01 | E163: 15.00% | F163: 158.70 | G163: 2,115.00 | H163: 27.50% | I163: 423.08 | J163: 2,115.00 | K163: 27.50% | L163: 423.08 | M163: 2,115.00 | N163: 27.50% | O163: 423.08 | P163: 106.00
A164: 2004-05-01 | B164: 0.00% | C164: 0 | D164: 1,058.01 | E164: 15.00% | F164: 158.70 | G164: 2,115.00 | H164: 27.50% | I164: 423.08 | J164: 2,115.00 | K164: 27.50% | L164: 423.08 | M164: 2,115.00 | N164: 27.50% | O164: 423.08 | P164: 106.00
A165: 2004-06-01 | B165: 0.00% | C165: 0 | D165: 1,058.01 | E165: 15.00% | F165: 158.70 | G165: 2,115.00 | H165: 27.50% | I165: 423.08 | J165: 2,115.00 | K165: 27.50% | L165: 423.08 | M165: 2,115.00 | N165: 27.50% | O165: 423.08 | P165: 106.00
A166: 2004-07-01 | B166: 0.00% | C166: 0 | D166: 1,058.01 | E166: 15.00% | F166: 158.70 | G166: 2,115.00 | H166: 27.50% | I166: 423.08 | J166: 2,115.00 | K166: 27.50% | L166: 423.08 | M166: 2,115.00 | N166: 27.50% | O166: 423.08 | P166: 106.00
A167: 2004-08-01 | B167: 0.00% | C167: 0 | D167: 1,058.01 | E167: 15.00% | F167: 158.70 | G167: 2,115.00 | H167: 27.50% | I167: 423.08 | J167: 2,115.00 | K167: 27.50% | L167: 423.08 | M167: 2,115.00 | N167: 27.50% | O167: 423.08 | P167: 106.00 | Q167: 100.00
A168: 2004-09-01 | B168: 0.00% | C168: 0 | D168: 1,058.01 | E168: 15.00% | F168: 158.70 | G168: 2,115.00 | H168: 27.50% | I168: 423.08 | J168: 2,115.00 | K168: 27.50% | L168: 423.08 | M168: 2,115.00 | N168: 27.50% | O168: 423.08 | P168: 106.00 | Q168: 100.00
A169: 2004-10-01 | B169: 0.00% | C169: 0 | D169: 1,058.01 | E169: 15.00% | F169: 158.70 | G169: 2,115.00 | H169: 27.50% | I169: 423.08 | J169: 2,115.00 | K169: 27.50% | L169: 423.08 | M169: 2,115.00 | N169: 27.50% | O169: 423.08 | P169: 106.00 | Q169: 100.00
A170: 2004-11-01 | B170: 0.00% | C170: 0 | D170: 1,058.01 | E170: 15.00% | F170: 158.70 | G170: 2,115.00 | H170: 27.50% | I170: 423.08 | J170: 2,115.00 | K170: 27.50% | L170: 423.08 | M170: 2,115.00 | N170: 27.50% | O170: 423.08 | P170: 106.00 | Q170: 100.00
A171: 2004-12-01 | B171: 0.00% | C171: 0 | D171: 1,058.01 | E171: 15.00% | F171: 158.70 | G171: 2,115.00 | H171: 27.50% | I171: 423.08 | J171: 2,115.00 | K171: 27.50% | L171: 423.08 | M171: 2,115.00 | N171: 27.50% | O171: 423.08 | P171: 106.00 | Q171: 100.00
A172: 2005-01-01 | B172: 0.00% | C172: 0 | D172: 1,164.00 | E172: 15.00% | F172: 174.60 | G172: 2,326.00 | H172: 27.50% | I172: 465.35 | J172: 2,326.00 | K172: 27.50% | L172: 465.35 | M172: 2,326.00 | N172: 27.50% | O172: 465.35 | P172: 117.00
A173: 2005-02-01 | B173: 0.00% | C173: 0 | D173: 1,164.00 | E173: 15.00% | F173: 174.60 | G173: 2,326.00 | H173: 27.50% | I173: 465.35 | J173: 2,326.00 | K173: 27.50% | L173: 465.35 | M173: 2,326.00 | N173: 27.50% | O173: 465.35 | P173: 117.00
A174: 2005-03-01 | B174: 0.00% | C174: 0 | D174: 1,164.00 | E174: 15.00% | F174: 174.60 | G174: 2,326.00 | H174: 27.50% | I174: 465.35 | J174: 2,326.00 | K174: 27.50% | L174: 465.35 | M174: 2,326.00 | N174: 27.50% | O174: 465.35 | P174: 117.00
A175: 2005-04-01 | B175: 0.00% | C175: 0 | D175: 1,164.00 | E175: 15.00% | F175: 174.60 | G175: 2,326.00 | H175: 27.50% | I175: 465.35 | J175: 2,326.00 | K175: 27.50% | L175: 465.35 | M175: 2,326.00 | N175: 27.50% | O175: 465.35 | P175: 117.00
A176: 2005-05-01 | B176: 0.00% | C176: 0 | D176: 1,164.00 | E176: 15.00% | F176: 174.60 | G176: 2,326.00 | H176: 27.50% | I176: 465.35 | J176: 2,326.00 | K176: 27.50% | L176: 465.35 | M176: 2,326.00 | N176: 27.50% | O176: 465.35 | P176: 117.00
A177: 2005-06-01 | B177: 0.00% | C177: 0 | D177: 1,164.00 | E177: 15.00% | F177: 174.60 | G177: 2,326.00 | H177: 27.50% | I177: 465.35 | J177: 2,326.00 | K177: 27.50% | L177: 465.35 | M177: 2,326.00 | N177: 27.50% | O177: 465.35 | P177: 117.00
A178: 2005-07-01 | B178: 0.00% | C178: 0 | D178: 1,164.00 | E178: 15.00% | F178: 174.60 | G178: 2,326.00 | H178: 27.50% | I178: 465.35 | J178: 2,326.00 | K178: 27.50% | L178: 465.35 | M178: 2,326.00 | N178: 27.50% | O178: 465.35 | P178: 117.00
A179: 2005-08-01 | B179: 0.00% | C179: 0 | D179: 1,164.00 | E179: 15.00% | F179: 174.60 | G179: 2,326.00 | H179: 27.50% | I179: 465.35 | J179: 2,326.00 | K179: 27.50% | L179: 465.35 | M179: 2,326.00 | N179: 27.50% | O179: 465.35 | P179: 117.00
A180: 2005-09-01 | B180: 0.00% | C180: 0 | D180: 1,164.00 | E180: 15.00% | F180: 174.60 | G180: 2,326.00 | H180: 27.50% | I180: 465.35 | J180: 2,326.00 | K180: 27.50% | L180: 465.35 | M180: 2,326.00 | N180: 27.50% | O180: 465.35 | P180: 117.00
A181: 2005-10-01 | B181: 0.00% | C181: 0 | D181: 1,164.00 | E181: 15.00% | F181: 174.60 | G181: 2,326.00 | H181: 27.50% | I181: 465.35 | J181: 2,326.00 | K181: 27.50% | L181: 465.35 | M181: 2,326.00 | N181: 27.50% | O181: 465.35 | P181: 117.00
A182: 2005-11-01 | B182: 0.00% | C182: 0 | D182: 1,164.00 | E182: 15.00% | F182: 174.60 | G182: 2,326.00 | H182: 27.50% | I182: 465.35 | J182: 2,326.00 | K182: 27.50% | L182: 465.35 | M182: 2,326.00 | N182: 27.50% | O182: 465.35 | P182: 117.00
A183: 2005-12-01 | B183: 0.00% | C183: 0 | D183: 1,164.00 | E183: 15.00% | F183: 174.60 | G183: 2,326.00 | H183: 27.50% | I183: 465.35 | J183: 2,326.00 | K183: 27.50% | L183: 465.35 | M183: 2,326.00 | N183: 27.50% | O183: 465.35 | P183: 117.00
A184: 2006-01-01 | B184: 0.00% | C184: 0 | D184: 1,164.00 | E184: 15.00% | F184: 174.60 | G184: 2,326.00 | H184: 27.50% | I184: 465.35 | J184: 2,326.00 | K184: 27.50% | L184: 465.35 | M184: 2,326.00 | N184: 27.50% | O184: 465.35 | P184: 117.00
A185: 2006-02-01 | B185: 0.00% | C185: 0 | D185: 1,257.12 | E185: 15.00% | F185: 188.57 | G185: 2,512.08 | H185: 27.50% | I185: 502.58 | J185: 2,512.08 | K185: 27.50% | L185: 502.58 | M185: 2,512.08 | N185: 27.50% | O185: 502.58 | P185: 126.36
A186: 2006-03-01 | B186: 0.00% | C186: 0 | D186: 1,257.12 | E186: 15.00% | F186: 188.57 | G186: 2,512.08 | H186: 27.50% | I186: 502.58 | J186: 2,512.08 | K186: 27.50% | L186: 502.58 | M186: 2,512.08 | N186: 27.50% | O186: 502.58 | P186: 126.36
A187: 2006-04-01 | B187: 0.00% | C187: 0 | D187: 1,257.12 | E187: 15.00% | F187: 188.57 | G187: 2,512.08 | H187: 27.50% | I187: 502.58 | J187: 2,512.08 | K187: 27.50% | L187: 502.58 | M187: 2,512.08 | N187: 27.50% | O187: 502.58 | P187: 126.36
A188: 2006-05-01 | B188: 0.00% | C188: 0 | D188: 1,257.12 | E188: 15.00% | F188: 188.57 | G188: 2,512.08 | H188: 27.50% | I188: 502.58 | J188: 2,512.08 | K188: 27.50% | L188: 502.58 | M188: 2,512.08 | N188: 27.50% | O188: 502.58 | P188: 126.36
A189: 2006-06-01 | B189: 0.00% | C189: 0 | D189: 1,257.12 | E189: 15.00% | F189: 188.57 | G189: 2,512.08 | H189: 27.50% | I189: 502.58 | J189: 2,512.08 | K189: 27.50% | L189: 502.58 | M189: 2,512.08 | N189: 27.50% | O189: 502.58 | P189: 126.36
A190: 2006-07-01 | B190: 0.00% | C190: 0 | D190: 1,257.12 | E190: 15.00% | F190: 188.57 | G190: 2,512.08 | H190: 27.50% | I190: 502.58 | J190: 2,512.08 | K190: 27.50% | L190: 502.58 | M190: 2,512.08 | N190: 27.50% | O190: 502.58 | P190: 126.36
A191: 2006-08-01 | B191: 0.00% | C191: 0 | D191: 1,257.12 | E191: 15.00% | F191: 188.57 | G191: 2,512.08 | H191: 27.50% | I191: 502.58 | J191: 2,512.08 | K191: 27.50% | L191: 502.58 | M191: 2,512.08 | N191: 27.50% | O191: 502.58 | P191: 126.36
A192: 2006-09-01 | B192: 0.00% | C192: 0 | D192: 1,257.12 | E192: 15.00% | F192: 188.57 | G192: 2,512.08 | H192: 27.50% | I192: 502.58 | J192: 2,512.08 | K192: 27.50% | L192: 502.58 | M192: 2,512.08 | N192: 27.50% | O192: 502.58 | P192: 126.36
A193: 2006-10-01 | B193: 0.00% | C193: 0 | D193: 1,257.12 | E193: 15.00% | F193: 188.57 | G193: 2,512.08 | H193: 27.50% | I193: 502.58 | J193: 2,512.08 | K193: 27.50% | L193: 502.58 | M193: 2,512.08 | N193: 27.50% | O193: 502.58 | P193: 126.36
A194: 2006-11-01 | B194: 0.00% | C194: 0 | D194: 1,257.12 | E194: 15.00% | F194: 188.57 | G194: 2,512.08 | H194: 27.50% | I194: 502.58 | J194: 2,512.08 | K194: 27.50% | L194: 502.58 | M194: 2,512.08 | N194: 27.50% | O194: 502.58 | P194: 126.36
A195: 2006-12-01 | B195: 0.00% | C195: 0 | D195: 1,257.12 | E195: 15.00% | F195: 188.57 | G195: 2,512.08 | H195: 27.50% | I195: 502.58 | J195: 2,512.08 | K195: 27.50% | L195: 502.58 | M195: 2,512.08 | N195: 27.50% | O195: 502.58 | P195: 126.36
A196: 2007-01-01 | B196: 0.00% | C196: 0 | D196: 1,313.69 | E196: 15.00% | F196: 197.05 | G196: 2,625.12 | H196: 27.50% | I196: 525.19 | J196: 2,625.12 | K196: 27.50% | L196: 525.19 | M196: 2,625.12 | N196: 27.50% | O196: 525.19 | P196: 132.05
A197: 2007-02-01 | B197: 0.00% | C197: 0 | D197: 1,313.69 | E197: 15.00% | F197: 197.05 | G197: 2,625.12 | H197: 27.50% | I197: 525.19 | J197: 2,625.12 | K197: 27.50% | L197: 525.19 | M197: 2,625.12 | N197: 27.50% | O197: 525.19 | P197: 132.05
A198: 2007-03-01 | B198: 0.00% | C198: 0 | D198: 1,313.69 | E198: 15.00% | F198: 197.05 | G198: 2,625.12 | H198: 27.50% | I198: 525.19 | J198: 2,625.12 | K198: 27.50% | L198: 525.19 | M198: =J198 -> 2,625.12 | N198: 27.50% | O198: 525.19 | P198: 132.05
A199: 2007-04-01 | B199: 0.00% | C199: 0 | D199: 1,313.69 | E199: 15.00% | F199: 197.05 | G199: 2,625.12 | H199: 27.50% | I199: 525.19 | J199: 2,625.12 | K199: 27.50% | L199: 525.19 | M199: 2,625.12 | N199: 27.50% | O199: 525.19 | P199: 132.05
A200: 2007-05-01 | B200: 0.00% | C200: 0 | D200: 1,313.69 | E200: 15.00% | F200: 197.05 | G200: 2,625.12 | H200: 27.50% | I200: 525.19 | J200: 2,625.12 | K200: 27.50% | L200: 525.19 | M200: 2,625.12 | N200: 27.50% | O200: 525.19 | P200: 132.05
A201: 2007-06-01 | B201: 0.00% | C201: 0 | D201: 1,313.69 | E201: 15.00% | F201: 197.05 | G201: 2,625.12 | H201: 27.50% | I201: 525.19 | J201: 2,625.12 | K201: 27.50% | L201: 525.19 | M201: 2,625.12 | N201: 27.50% | O201: 525.19 | P201: 132.05
A202: 2007-07-01 | B202: 0.00% | C202: 0 | D202: 1,313.69 | E202: 15.00% | F202: 197.05 | G202: 2,625.12 | H202: 27.50% | I202: 525.19 | J202: 2,625.12 | K202: 27.50% | L202: 525.19 | M202: 2,625.12 | N202: 27.50% | O202: 525.19 | P202: 132.05
... 209 more rows
